BODY,BODY NAME,DATE,TRANSACTION NUMBER,THEIR REF,CATEGORY,AMOUNT,SUPPLIER NAME,SUPPLIER CODE,EXPENSE AREA,EXPENSE TYPE,EXPENSE CODE
18/02/2016,http://statistics.data.gov.uk/id/local-authority/12UE,Huntingdonshire District Council,183161,1,5,990,Richard Sistrom Painting & Decorating,CR422887,Leisure Centres Capital,Building Mtce,303
25/02/2016,http://statistics.data.gov.uk/id/local-authority/12UE,Huntingdonshire District Council,183970,1,5,"2,420.00",Tree Officer Outsourcing Uk Ltd,CR423131,Trees,Consultants,711
04/02/2016,http://statistics.data.gov.uk/id/local-authority/12UE,Huntingdonshire District Council,183162,2,5,327,Richard Sistrom Painting & Decorating,CR422887,One Leisure St Ives,Building Mtce,303
25/02/2016,http://statistics.data.gov.uk/id/local-authority/12UE,Huntingdonshire District Council,183685,6,5,"2,412.00",Peacock Engineering,CR410043,Countryside,Sitework,359
25/02/2016,http://statistics.data.gov.uk/id/local-authority/12UE,Huntingdonshire District Council,183685,6,5,"2,028.00",Peacock Engineering,CR410043,Countryside,Sitework,359
25/02/2016,http://statistics.data.gov.uk/id/local-authority/12UE,Huntingdonshire District Council,184451,7,5,996,Peacock Engineering,CR410043,Countryside,Sitework,359
04/02/2016,http://statistics.data.gov.uk/id/local-authority/12UE,Huntingdonshire District Council,182525,17,5,371.33,Skl Property Services,CR422708,One Leisure Huntingdon,Building Mtce,303
18/02/2016,http://statistics.data.gov.uk/id/local-authority/12UE,Huntingdonshire District Council,184298,18,4,"3,120.00",New Saints 2015 Amateur Boxing Club,CR423385,Community Safety,Grants (Paid Out),800
04/02/2016,http://statistics.data.gov.uk/id/local-authority/12UE,Huntingdonshire District Council,182549,109,5,60,Arb Utility Training,CR422366,Fleet Management,Equipment Maintenance,511
04/02/2016,http://statistics.data.gov.uk/id/local-authority/12UE,Huntingdonshire District Council,182549,109,5,323.16,Arb Utility Training,CR422366,Grounds Maintenance,Equipment Maintenance,511
18/02/2016,http://statistics.data.gov.uk/id/local-authority/12UE,Huntingdonshire District Council,183219,603,5,616.68,Activities Away,CR423155,Eh Health & Safety,Enforcement - Works In Default,715
11/02/2016,http://statistics.data.gov.uk/id/local-authority/12UE,Huntingdonshire District Council,183819,649,5,"1,819.13",Hact,CR455657,Concessionary Fares,Contribution (Paid Out),810
25/02/2016,http://statistics.data.gov.uk/id/local-authority/12UE,Huntingdonshire District Council,184869,651,5,477.6,Pool Maintenance Ltd,CR422505,One Leisure Sawtry,Plant & Equipment Maintenance,380
25/02/2016,http://statistics.data.gov.uk/id/local-authority/12UE,Huntingdonshire District Council,184527,833,5,"1,800.00",Flexerefrigeration Ltd,CR422336,One Leisure St Neots,Plant & Equipment Maintenance,380
18/02/2016,http://statistics.data.gov.uk/id/local-authority/12UE,Huntingdonshire District Council,593519,994,1,271.38,St Ives Town Council,CR000701,Bus Stations,Building Cleaning,440
18/02/2016,http://statistics.data.gov.uk/id/local-authority/12UE,Huntingdonshire District Council,592705,1002,6,"2,500.00",Huntingdon Community Action Projects,CR423163,Community Safety,Grants (Paid Out),800
25/02/2016,http://statistics.data.gov.uk/id/local-authority/12UE,Huntingdonshire District Council,183368,1283,5,90,Talk Twenty 1,CR422876,One Leisure Huntingdon,Advertising/Promoting Services,255
25/02/2016,http://statistics.data.gov.uk/id/local-authority/12UE,Huntingdonshire District Council,183368,1283,5,90,Talk Twenty 1,CR422876,One Leisure Ramsey,Advertising/Promoting Services,255
25/02/2016,http://statistics.data.gov.uk/id/local-authority/12UE,Huntingdonshire District Council,183368,1283,5,90,Talk Twenty 1,CR422876,One Leisure Sawtry,Advertising/Promoting Services,255
25/02/2016,http://statistics.data.gov.uk/id/local-authority/12UE,Huntingdonshire District Council,183368,1283,5,90,Talk Twenty 1,CR422876,One Leisure St Ives,Advertising/Promoting Services,255
25/02/2016,http://statistics.data.gov.uk/id/local-authority/12UE,Huntingdonshire District Council,183368,1283,5,90,Talk Twenty 1,CR422876,One Leisure St Neots,Advertising/Promoting Services,255
11/02/2016,http://statistics.data.gov.uk/id/local-authority/12UE,Huntingdonshire District Council,183257,1646,5,648,Country Leisure Fibreglass Ltd,CR423162,One Leisure St Neots,Building Mtce,303
25/02/2016,http://statistics.data.gov.uk/id/local-authority/12UE,Huntingdonshire District Council,184123,1695,5,"11,758.80",Jupiter Play And Leisure Ltd,CR423373,Parks Equipment Capital,Playground Equipment,360
25/02/2016,http://statistics.data.gov.uk/id/local-authority/12UE,Huntingdonshire District Council,183936,1998,5,330,The Wedding Planner,CR482566,One Leisure St Ives,Advertising/Promoting Services,255
18/02/2016,http://statistics.data.gov.uk/id/local-authority/12UE,Huntingdonshire District Council,183964,2774,5,"1,280.05",Sci Print Limited,CR416581,Elections,Printing (External),220
18/02/2016,http://statistics.data.gov.uk/id/local-authority/12UE,Huntingdonshire District Council,183964,2774,5,"11,386.79",Sci Print Limited,CR416581,Project Contributions,Printing (External),220
25/02/2016,http://statistics.data.gov.uk/id/local-authority/12UE,Huntingdonshire District Council,184166,2855,5,"4,206.63",Newlyn Plc,CR409114,Council Tax,Bailiffs,703
25/02/2016,http://statistics.data.gov.uk/id/local-authority/12UE,Huntingdonshire District Council,184166,2855,5,806.26,Newlyn Plc,CR409114,Council Tax,Bailiffs,703
25/02/2016,http://statistics.data.gov.uk/id/local-authority/12UE,Huntingdonshire District Council,184163,2856,5,980.65,Newlyn Plc,CR409114,N N D R Administration,Bailiffs,703
25/02/2016,http://statistics.data.gov.uk/id/local-authority/12UE,Huntingdonshire District Council,183855,3235,5,"1,810.00",Adams Autos,CR422066,Licences,Vehicle Inspection,618
18/02/2016,http://statistics.data.gov.uk/id/local-authority/12UE,Huntingdonshire District Council,183213,3743,5,"2,193.00",Richard Herrmann Assoc Ltd,CR403316,Phoenix Roof Replacement,Consultants,711
25/02/2016,http://statistics.data.gov.uk/id/local-authority/12UE,Huntingdonshire District Council,184345,4168,5,"1,050.00",Access Hire And Hydraulics,CR422526,C C T V,Equipment Maintenance,511
18/02/2016,http://statistics.data.gov.uk/id/local-authority/12UE,Huntingdonshire District Council,183130,5806,5,536.11,Wallgate Limited,CR478363,Public Conveniences,Building Mtce,303
18/02/2016,http://statistics.data.gov.uk/id/local-authority/12UE,Huntingdonshire District Council,183154,6037,5,"5,016.00",Cambridge Flat Roofing,CR479717,One Leisure St Ives,Building Mtce,303
11/02/2016,http://statistics.data.gov.uk/id/local-authority/12UE,Huntingdonshire District Council,182945,6118,5,"2,268.00",Lattenbury Services,CR406847,Watercourses,Sitework,359
25/02/2016,http://statistics.data.gov.uk/id/local-authority/12UE,Huntingdonshire District Council,184374,6148,5,"1,416.00",Lattenbury Services,CR406847,E F H And Depots,Building Mtce,303
11/02/2016,http://statistics.data.gov.uk/id/local-authority/12UE,Huntingdonshire District Council,184066,7347,5,"5,400.00",Locata Housing Services Ltd,CR478274,Housing Register,Software,206
11/02/2016,http://statistics.data.gov.uk/id/local-authority/12UE,Huntingdonshire District Council,184012,7584,5,984,Recotherm Ltd,CR455070,One Leisure Sawtry,Plant & Equipment Maintenance,380
04/02/2016,http://statistics.data.gov.uk/id/local-authority/12UE,Huntingdonshire District Council,182833,7609,5,750,Contract Flooring Services,CR423090,E F H And Depots,Building Mtce,303
25/02/2016,http://statistics.data.gov.uk/id/local-authority/12UE,Huntingdonshire District Council,184586,8271,5,350,Starlite Roadshow,CR024127,One Leisure St Ives,Entertainments Inc Cable Tv,744
04/02/2016,http://statistics.data.gov.uk/id/local-authority/12UE,Huntingdonshire District Council,183373,9508,5,760.8,Roger Wilson Electronics,CR028041,One Leisure St Ives,Building Mtce,303
18/02/2016,http://statistics.data.gov.uk/id/local-authority/12UE,Huntingdonshire District Council,183385,9510,5,495.6,Roger Wilson Electronics,CR028041,One Leisure St Neots,Building Mtce,303
04/02/2016,http://statistics.data.gov.uk/id/local-authority/12UE,Huntingdonshire District Council,183375,9512,5,251.16,Roger Wilson Electronics,CR028041,One Leisure Sawtry,Building Mtce,303
25/02/2016,http://statistics.data.gov.uk/id/local-authority/12UE,Huntingdonshire District Council,184061,9523,5,"1,423.20",Roger Wilson Electronics,CR028041,Leisure Services Capital,Building Mtce,303
25/02/2016,http://statistics.data.gov.uk/id/local-authority/12UE,Huntingdonshire District Council,184061,9523,5,54,Roger Wilson Electronics,CR028041,One Leisure St Ives,Building Mtce,303
25/02/2016,http://statistics.data.gov.uk/id/local-authority/12UE,Huntingdonshire District Council,184584,9537,5,666,Roger Wilson Electronics,CR028041,One Leisure St Ives,Building Mtce,303
11/02/2016,http://statistics.data.gov.uk/id/local-authority/12UE,Huntingdonshire District Council,183998,10691,5,767.04,Playfords Ltd,CR479055,One Leisure Sawtry,Network Hardware,205
25/02/2016,http://statistics.data.gov.uk/id/local-authority/12UE,Huntingdonshire District Council,184173,10909,5,"1,080.00",Playfords Ltd,CR479055,Commercial Properties,Building Mtce,303
04/02/2016,http://statistics.data.gov.uk/id/local-authority/12UE,Huntingdonshire District Council,182530,11523,5,601.62,Lightning Recruitment,CR028184,Customer Service Centres,Hired Staff,100
04/02/2016,http://statistics.data.gov.uk/id/local-authority/12UE,Huntingdonshire District Council,182532,11524,5,325.2,Lightning Recruitment,CR028184,Call Centre,Hired Staff,100
04/02/2016,http://statistics.data.gov.uk/id/local-authority/12UE,Huntingdonshire District Council,182880,11526,5,661.12,Lightning Recruitment,CR028184,Financial Services Mus,Hired Staff,100
04/02/2016,http://statistics.data.gov.uk/id/local-authority/12UE,Huntingdonshire District Council,182529,11527,5,262.62,Lightning Recruitment,CR028184,Customer Service Centres,Hired Staff,100
11/02/2016,http://statistics.data.gov.uk/id/local-authority/12UE,Huntingdonshire District Council,182929,11560,5,325.2,Lightning Recruitment,CR028184,Call Centre,Hired Staff,100
11/02/2016,http://statistics.data.gov.uk/id/local-authority/12UE,Huntingdonshire District Council,182930,11561,5,651.96,Lightning Recruitment,CR028184,Development Team,Hired Staff,100
18/02/2016,http://statistics.data.gov.uk/id/local-authority/12UE,Huntingdonshire District Council,183561,11562,5,625.38,Lightning Recruitment,CR028184,Financial Services Mus,Hired Staff,100
11/02/2016,http://statistics.data.gov.uk/id/local-authority/12UE,Huntingdonshire District Council,182932,11563,5,525.24,Lightning Recruitment,CR028184,Customer Service Centres,Hired Staff,100
18/02/2016,http://statistics.data.gov.uk/id/local-authority/12UE,Huntingdonshire District Council,183276,11602,5,601.62,Lightning Recruitment,CR028184,Customer Service Centres,Hired Staff,100
18/02/2016,http://statistics.data.gov.uk/id/local-authority/12UE,Huntingdonshire District Council,183275,11603,5,390.24,Lightning Recruitment,CR028184,Call Centre,Hired Staff,100
18/02/2016,http://statistics.data.gov.uk/id/local-authority/12UE,Huntingdonshire District Council,183346,11604,5,651.96,Lightning Recruitment,CR028184,Development Team,Hired Staff,100
18/02/2016,http://statistics.data.gov.uk/id/local-authority/12UE,Huntingdonshire District Council,183342,11605,5,500.3,Lightning Recruitment,CR028184,Financial Services Mus,Hired Staff,100
25/02/2016,http://statistics.data.gov.uk/id/local-authority/12UE,Huntingdonshire District Council,183802,11642,5,601.62,Lightning Recruitment,CR028184,Customer Service Centres,Hired Staff,100
25/02/2016,http://statistics.data.gov.uk/id/local-authority/12UE,Huntingdonshire District Council,183801,11643,5,325.2,Lightning Recruitment,CR028184,Call Centre,Hired Staff,100
25/02/2016,http://statistics.data.gov.uk/id/local-authority/12UE,Huntingdonshire District Council,184438,11644,5,518.17,Lightning Recruitment,CR028184,Financial Services Mus,Hired Staff,100
25/02/2016,http://statistics.data.gov.uk/id/local-authority/12UE,Huntingdonshire District Council,183800,11645,5,564.84,Lightning Recruitment,CR028184,Customer Service Centres,Hired Staff,100
04/02/2016,http://statistics.data.gov.uk/id/local-authority/12UE,Huntingdonshire District Council,183806,11646,5,292.68,Lightning Recruitment,CR028184,Information Manager,Hired Staff,100
11/02/2016,http://statistics.data.gov.uk/id/local-authority/12UE,Huntingdonshire District Council,184021,11685,5,341.46,Lightning Recruitment,CR028184,Information Manager,Hired Staff,100
18/02/2016,http://statistics.data.gov.uk/id/local-authority/12UE,Huntingdonshire District Council,184486,11724,5,341.46,Lightning Recruitment,CR028184,Information Manager,Hired Staff,100
11/02/2016,http://statistics.data.gov.uk/id/local-authority/12UE,Huntingdonshire District Council,183767,12701,5,"1,022.40",I-Clean Systems Ltd,CR423141,One Leisure Huntingdon,Consultants,711
11/02/2016,http://statistics.data.gov.uk/id/local-authority/12UE,Huntingdonshire District Council,183767,12701,5,511.2,I-Clean Systems Ltd,CR423141,One Leisure Ramsey,Consultants,711
11/02/2016,http://statistics.data.gov.uk/id/local-authority/12UE,Huntingdonshire District Council,183767,12701,5,511.2,I-Clean Systems Ltd,CR423141,One Leisure Sawtry,Consultants,711
11/02/2016,http://statistics.data.gov.uk/id/local-authority/12UE,Huntingdonshire District Council,183767,12701,5,"1,022.40",I-Clean Systems Ltd,CR423141,One Leisure St Ives,Consultants,711
11/02/2016,http://statistics.data.gov.uk/id/local-authority/12UE,Huntingdonshire District Council,183767,12701,5,"1,022.40",I-Clean Systems Ltd,CR423141,One Leisure St Neots,Consultants,711
25/02/2016,http://statistics.data.gov.uk/id/local-authority/12UE,Huntingdonshire District Council,184444,13647,5,"4,760.64",Jade Security Services Ltd,CR422256,Off Street Parking,Cash Collection,702
25/02/2016,http://statistics.data.gov.uk/id/local-authority/12UE,Huntingdonshire District Council,184297,13648,5,33.48,Jade Security Services Ltd,CR422256,Countryside,Cash Collection,702
25/02/2016,http://statistics.data.gov.uk/id/local-authority/12UE,Huntingdonshire District Council,184297,13648,5,334.8,Jade Security Services Ltd,CR422256,Interest Received,Cash Collection,702
25/02/2016,http://statistics.data.gov.uk/id/local-authority/12UE,Huntingdonshire District Council,184297,13648,5,267.84,Jade Security Services Ltd,CR422256,One Leisure Huntingdon,Cash Collection,702
25/02/2016,http://statistics.data.gov.uk/id/local-authority/12UE,Huntingdonshire District Council,184297,13648,5,66.96,Jade Security Services Ltd,CR422256,One Leisure Ramsey,Cash Collection,702
25/02/2016,http://statistics.data.gov.uk/id/local-authority/12UE,Huntingdonshire District Council,184297,13648,5,66.96,Jade Security Services Ltd,CR422256,One Leisure Sawtry,Cash Collection,702
25/02/2016,http://statistics.data.gov.uk/id/local-authority/12UE,Huntingdonshire District Council,184297,13648,5,200.88,Jade Security Services Ltd,CR422256,One Leisure St Ives,Cash Collection,702
25/02/2016,http://statistics.data.gov.uk/id/local-authority/12UE,Huntingdonshire District Council,184297,13648,5,401.76,Jade Security Services Ltd,CR422256,One Leisure St Neots,Cash Collection,702
18/02/2016,http://statistics.data.gov.uk/id/local-authority/12UE,Huntingdonshire District Council,184557,13979,5,"5,850.00",Garfield Builders Ltd,CR033216,Leisure Centres Capital,Building Mtce,303
18/02/2016,http://statistics.data.gov.uk/id/local-authority/12UE,Huntingdonshire District Council,184550,15880,5,432,Bigprinting,CR416383,Leisure Centres Overall,Printing (External),220
18/02/2016,http://statistics.data.gov.uk/id/local-authority/12UE,Huntingdonshire District Council,184320,16282,5,"9,600.00",Housing Partners Ltd,CR423111,Housing  Benefits Admin,Software,206
11/02/2016,http://statistics.data.gov.uk/id/local-authority/12UE,Huntingdonshire District Council,182944,16674,5,446.4,Campbell Associates,CR407137,Nuisances,Equipment Maintenance,511
04/02/2016,http://statistics.data.gov.uk/id/local-authority/12UE,Huntingdonshire District Council,182579,17009,5,732,Activ Security Uk Ltd,CR409710,One Leisure Huntingdon,Fire & Security,450
04/02/2016,http://statistics.data.gov.uk/id/local-authority/12UE,Huntingdonshire District Council,182578,17010,5,558,Activ Security Uk Ltd,CR409710,One Leisure Huntingdon,Fire & Security,450
25/02/2016,http://statistics.data.gov.uk/id/local-authority/12UE,Huntingdonshire District Council,184418,17839,5,668.59,Bedford Timber Ltd,CR406479,Countryside,Materials,550
04/02/2016,http://statistics.data.gov.uk/id/local-authority/12UE,Huntingdonshire District Council,592094,18357,5,292.8,Aea Bookings,CR416382,Electoral Registration,Training,130
18/02/2016,http://statistics.data.gov.uk/id/local-authority/12UE,Huntingdonshire District Council,183227,19479,5,88.8,Bh Doors & Engineering Ltd,CR455707,Bus Stations,Building Mtce,303
18/02/2016,http://statistics.data.gov.uk/id/local-authority/12UE,Huntingdonshire District Council,183227,19479,5,88.8,Bh Doors & Engineering Ltd,CR455707,E F H And Depots,Building Mtce,303
18/02/2016,http://statistics.data.gov.uk/id/local-authority/12UE,Huntingdonshire District Council,183227,19479,5,266.4,Bh Doors & Engineering Ltd,CR455707,Pathfinder House Site,Building Mtce,303
18/02/2016,http://statistics.data.gov.uk/id/local-authority/12UE,Huntingdonshire District Council,183227,19479,5,150,Bh Doors & Engineering Ltd,CR455707,Off Street Parking,Plant & Equipment Maintenance,380
25/02/2016,http://statistics.data.gov.uk/id/local-authority/12UE,Huntingdonshire District Council,184138,21630,5,"1,093.14",B. S. Graves Electrical Ltd,CR000363,Pathfinder House Site,Building Mtce,303
25/02/2016,http://statistics.data.gov.uk/id/local-authority/12UE,Huntingdonshire District Council,184171,21637,5,280.51,B. S. Graves Electrical Ltd,CR000363,E F H And Depots,Building Mtce,303
04/02/2016,http://statistics.data.gov.uk/id/local-authority/12UE,Huntingdonshire District Council,182643,21648,5,"1,738.80",Fgi Ltd,CR417042,Information Manager,Training,130
25/02/2016,http://statistics.data.gov.uk/id/local-authority/12UE,Huntingdonshire District Council,184174,21649,5,308.41,B. S. Graves Electrical Ltd,CR000363,E F H And Depots,Building Mtce,303
25/02/2016,http://statistics.data.gov.uk/id/local-authority/12UE,Huntingdonshire District Council,184125,22936,5,95,M & N Vehicle Services,CR480661,Street Cleaning,Vehicle Parts & Fittings,625
25/02/2016,http://statistics.data.gov.uk/id/local-authority/12UE,Huntingdonshire District Council,184125,22936,5,"2,360.21",M & N Vehicle Services,CR480661,Street Cleaning,Vehicle Parts & Fittings,625
25/02/2016,http://statistics.data.gov.uk/id/local-authority/12UE,Huntingdonshire District Council,183343,23752,5,367.2,Sterling Hydrotech Ltd,CR422914,One Leisure Huntingdon,Building Mtce,303
25/02/2016,http://statistics.data.gov.uk/id/local-authority/12UE,Huntingdonshire District Council,183398,23793,5,"1,892.40",Sterling Hydrotech Ltd,CR422914,One Leisure Huntingdon,Plant & Equipment Maintenance,380
25/02/2016,http://statistics.data.gov.uk/id/local-authority/12UE,Huntingdonshire District Council,183405,26043,5,"3,705.00",Hygiene Solutions,CR477443,Pathfinder House Site,Building Mtce,303
25/02/2016,http://statistics.data.gov.uk/id/local-authority/12UE,Huntingdonshire District Council,184063,29508,5,172.98,Cintra Ltd,CR028441,Housing Management Units,Translation Services,766
25/02/2016,http://statistics.data.gov.uk/id/local-authority/12UE,Huntingdonshire District Council,184063,29508,5,107.84,Cintra Ltd,CR028441,Revenue Services Mus,Translation Services,766
04/02/2016,http://statistics.data.gov.uk/id/local-authority/12UE,Huntingdonshire District Council,183810,30216,5,414.97,Skaters,CR422328,One Leisure Huntingdon,Sports Equipment,524
25/02/2016,http://statistics.data.gov.uk/id/local-authority/12UE,Huntingdonshire District Council,184441,33320,5,270,Ian'S Tyre & Exhaust Centre,CR405836,Street Cleaning,Tyres,630
18/02/2016,http://statistics.data.gov.uk/id/local-authority/12UE,Huntingdonshire District Council,183585,35068,5,362.1,Caterfix Ltd,CR480775,One Leisure St Neots,Building Mtce,303
25/02/2016,http://statistics.data.gov.uk/id/local-authority/12UE,Huntingdonshire District Council,183770,35123,5,385.68,Caterfix Ltd,CR480775,One Leisure St Ives,Equipment Maintenance,511
04/02/2016,http://statistics.data.gov.uk/id/local-authority/12UE,Huntingdonshire District Council,183719,36164,5,441.31,Groundsman,CR422159,Street Cleaning,Equipment,500
18/02/2016,http://statistics.data.gov.uk/id/local-authority/12UE,Huntingdonshire District Council,184111,36317,5,457.87,Groundsman,CR422159,Parks & Open Spaces,Materials,550
04/02/2016,http://statistics.data.gov.uk/id/local-authority/12UE,Huntingdonshire District Council,182463,38843,5,393.6,Clanpress King'S Lynn Ltd,CR413516,Document Centre,Equipment Maintenance,511
18/02/2016,http://statistics.data.gov.uk/id/local-authority/12UE,Huntingdonshire District Council,183216,39664,5,648,Dal-Rod (Camridgeshire),CR413675,E F H And Depots,Sitework,359
25/02/2016,http://statistics.data.gov.uk/id/local-authority/12UE,Huntingdonshire District Council,184170,39804,5,342,Dal-Rod (Camridgeshire),CR413675,Pathfinder House Site,Building Mtce,303
18/02/2016,http://statistics.data.gov.uk/id/local-authority/12UE,Huntingdonshire District Council,183254,40117,5,278.36,Plot It,CR455069,Dc Application Processing,Materials,550
04/02/2016,http://statistics.data.gov.uk/id/local-authority/12UE,Huntingdonshire District Council,183660,41016,5,300,Dings Entertainment,CR412228,One Leisure St Ives,Entertainments Inc Cable Tv,744
25/02/2016,http://statistics.data.gov.uk/id/local-authority/12UE,Huntingdonshire District Council,184008,42198,5,582,Coffee Solutions,CR480375,One Leisure Huntingdon,Equipment Hire,507
25/02/2016,http://statistics.data.gov.uk/id/local-authority/12UE,Huntingdonshire District Council,184499,25/01/2016,5,"1,599.10",Harlequin Costume Hire,CR006741,One Leisure St Ives,Materials,550
25/02/2016,http://statistics.data.gov.uk/id/local-authority/12UE,Huntingdonshire District Council,183739,28-Jan-16,5,110.33,Westminster Foodservice,CR455156,One Leisure St Ives,Bar Provisions,558
25/02/2016,http://statistics.data.gov.uk/id/local-authority/12UE,Huntingdonshire District Council,183739,28-Jan-16,5,176.15,Westminster Foodservice,CR455156,One Leisure St Ives,Catering Materials,559
25/02/2016,http://statistics.data.gov.uk/id/local-authority/12UE,Huntingdonshire District Council,183739,28-Jan-16,5,24.36,Westminster Foodservice,CR455156,One Leisure St Ives,Materials,550
25/02/2016,http://statistics.data.gov.uk/id/local-authority/12UE,Huntingdonshire District Council,184024,31-Jan-16,5,"4,020.00",Edrm Systems Ltd,CR416278,Helpdesk,Hired Staff,100
25/02/2016,http://statistics.data.gov.uk/id/local-authority/12UE,Huntingdonshire District Council,184861,Mar-16,5,"1,250.00",The Galaxy Big Band,CR422768,One Leisure St Ives,Entertainments Inc Cable Tv,744
11/02/2016,http://statistics.data.gov.uk/id/local-authority/12UE,Huntingdonshire District Council,183181,45921,5,420,Technical Surfaces Ltd,CR031941,One Leisure St Ives,Grounds Mtce Contractors,351
11/02/2016,http://statistics.data.gov.uk/id/local-authority/12UE,Huntingdonshire District Council,182976,50049,5,964.43,Landmark Trading Ltd,CR411433,Grounds Maintenance,Equipment,500
25/02/2016,http://statistics.data.gov.uk/id/local-authority/12UE,Huntingdonshire District Council,183937,53979,5,840,Melsecure International,CR422888,C C T V,Equipment Maintenance,511
04/02/2016,http://statistics.data.gov.uk/id/local-authority/12UE,Huntingdonshire District Council,183128,55782,5,"1,140.78",Beebys Limited,CR415822,Bus Stations,Building Cleaning,440
11/02/2016,http://statistics.data.gov.uk/id/local-authority/12UE,Huntingdonshire District Council,182846,55848,5,390,Beebys Limited,CR415822,One Leisure St Ives,Building Mtce,303
25/02/2016,http://statistics.data.gov.uk/id/local-authority/12UE,Huntingdonshire District Council,183757,55929,5,256.16,Beebys Limited,CR415822,Public Conveniences,Cleaning Materials,443
18/02/2016,http://statistics.data.gov.uk/id/local-authority/12UE,Huntingdonshire District Council,183762,62084,5,410.4,Britannia Fire & Security Ltd,CR410090,Pathfinder House Site,Building Mtce,303
18/02/2016,http://statistics.data.gov.uk/id/local-authority/12UE,Huntingdonshire District Council,183760,62237,5,419.4,Britannia Fire & Security Ltd,CR410090,Customer Service Centres,Building Mtce,303
04/02/2016,http://statistics.data.gov.uk/id/local-authority/12UE,Huntingdonshire District Council,183563,64245,5,304.26,Snackline Direct Ltd,CR478090,One Leisure St Neots,Vending Materials,560
04/02/2016,http://statistics.data.gov.uk/id/local-authority/12UE,Huntingdonshire District Council,183264,64292,5,409.58,Snackline Direct Ltd,CR478090,One Leisure St Ives,Vending Materials,560
11/02/2016,http://statistics.data.gov.uk/id/local-authority/12UE,Huntingdonshire District Council,183266,64525,5,308.71,Snackline Direct Ltd,CR478090,One Leisure St Ives,Vending Materials,560
25/02/2016,http://statistics.data.gov.uk/id/local-authority/12UE,Huntingdonshire District Council,183269,64779,5,155.88,Snackline Direct Ltd,CR478090,One Leisure St Ives,Bar Provisions,558
25/02/2016,http://statistics.data.gov.uk/id/local-authority/12UE,Huntingdonshire District Council,183269,64779,5,16.75,Snackline Direct Ltd,CR478090,One Leisure St Ives,Catering Materials,559
25/02/2016,http://statistics.data.gov.uk/id/local-authority/12UE,Huntingdonshire District Council,183269,64779,5,82.77,Snackline Direct Ltd,CR478090,One Leisure St Ives,Confectionery,572
25/02/2016,http://statistics.data.gov.uk/id/local-authority/12UE,Huntingdonshire District Council,183566,64868,5,738.04,Snackline Direct Ltd,CR478090,One Leisure St Neots,Vending Materials,560
25/02/2016,http://statistics.data.gov.uk/id/local-authority/12UE,Huntingdonshire District Council,183740,65003,5,387.93,Snackline Direct Ltd,CR478090,One Leisure St Ives,Vending Materials,560
18/02/2016,http://statistics.data.gov.uk/id/local-authority/12UE,Huntingdonshire District Council,184103,65912,5,"10,776.83",Haven Power Ltd,CR455940,Pathfinder House Site,Electricity,420
18/02/2016,http://statistics.data.gov.uk/id/local-authority/12UE,Huntingdonshire District Council,184102,65914,5,"10,652.58",Haven Power Ltd,CR455940,One Leisure St Neots,Electricity,420
18/02/2016,http://statistics.data.gov.uk/id/local-authority/12UE,Huntingdonshire District Council,184098,65916,5,"5,144.93",Haven Power Ltd,CR455940,One Leisure Huntingdon,Electricity,420
18/02/2016,http://statistics.data.gov.uk/id/local-authority/12UE,Huntingdonshire District Council,184095,65919,5,"8,724.61",Haven Power Ltd,CR455940,One Leisure St Ives,Electricity,420
18/02/2016,http://statistics.data.gov.uk/id/local-authority/12UE,Huntingdonshire District Council,184093,65922,5,"4,189.65",Haven Power Ltd,CR455940,One Leisure St Ives,Electricity,420
18/02/2016,http://statistics.data.gov.uk/id/local-authority/12UE,Huntingdonshire District Council,184410,65924,5,"5,284.45",Haven Power Ltd,CR455940,E F H And Depots,Electricity,420
11/02/2016,http://statistics.data.gov.uk/id/local-authority/12UE,Huntingdonshire District Council,184091,69255,5,"1,591.20",Dawsonrentals Sweepers,CR416605,Street Cleaning,Vehicle Hire,607
18/02/2016,http://statistics.data.gov.uk/id/local-authority/12UE,Huntingdonshire District Council,184092,69316,5,979.2,Dawsonrentals Sweepers,CR416605,Street Cleaning,Vehicle Hire,607
18/02/2016,http://statistics.data.gov.uk/id/local-authority/12UE,Huntingdonshire District Council,184514,75941,5,390,Servicesport (Uk) Ltd,CR422867,One Leisure Huntingdon,Equipment Maintenance,511
11/02/2016,http://statistics.data.gov.uk/id/local-authority/12UE,Huntingdonshire District Council,180502,75999,5,"1,617.60",Gladstone Mrm,CR405717,One Leisure St Ives,Equipment,500
18/02/2016,http://statistics.data.gov.uk/id/local-authority/12UE,Huntingdonshire District Council,184512,76341,5,646.75,Servicesport (Uk) Ltd,CR422867,One Leisure St Ives,Equipment Maintenance,511
18/02/2016,http://statistics.data.gov.uk/id/local-authority/12UE,Huntingdonshire District Council,184511,76344,5,712.76,Servicesport (Uk) Ltd,CR422867,One Leisure St Ives,Equipment Maintenance,511
25/02/2016,http://statistics.data.gov.uk/id/local-authority/12UE,Huntingdonshire District Council,183616,77050,5,993,Crowders Nurseries,CR411361,Trees,Trees/Shrubs,555
04/02/2016,http://statistics.data.gov.uk/id/local-authority/12UE,Huntingdonshire District Council,183350,77367,5,"1,148.50",Servicesport (Uk) Ltd,CR422867,One Leisure St Ives,Equipment Maintenance,511
25/02/2016,http://statistics.data.gov.uk/id/local-authority/12UE,Huntingdonshire District Council,184566,78187,5,647.21,Servicesport (Uk) Ltd,CR422867,One Leisure Sawtry,Equipment Maintenance,511
25/02/2016,http://statistics.data.gov.uk/id/local-authority/12UE,Huntingdonshire District Council,184567,78452,5,372,Servicesport (Uk) Ltd,CR422867,One Leisure St Ives,Equipment Maintenance,511
18/02/2016,http://statistics.data.gov.uk/id/local-authority/12UE,Huntingdonshire District Council,184467,83070,5,438,Frank Ratcliffe & Son,CR007546,Domestic Refuse,Vehicle Maintenance External,619
04/02/2016,http://statistics.data.gov.uk/id/local-authority/12UE,Huntingdonshire District Council,183626,83670,5,"1,845.49",Bandvulc Truck Tyres,CR406810,Domestic Refuse,Tyres,630
04/02/2016,http://statistics.data.gov.uk/id/local-authority/12UE,Huntingdonshire District Council,183626,83670,5,"1,913.61",Bandvulc Truck Tyres,CR406810,Recycling,Tyres,630
04/02/2016,http://statistics.data.gov.uk/id/local-authority/12UE,Huntingdonshire District Council,183626,83670,5,317.55,Bandvulc Truck Tyres,CR406810,Street Cleaning,Tyres,630
25/02/2016,http://statistics.data.gov.uk/id/local-authority/12UE,Huntingdonshire District Council,184046,85355,5,555.12,Harry Dalby Engineering Ltd,CR455770,One Leisure St Ives,Equipment Maintenance,511
04/02/2016,http://statistics.data.gov.uk/id/local-authority/12UE,Huntingdonshire District Council,183815,90029,5,592.8,Safety Assured Ltd,CR409488,Leisure Centres Capital,Materials,550
25/02/2016,http://statistics.data.gov.uk/id/local-authority/12UE,Huntingdonshire District Council,183411,95407,5,"5,276.52",Evalu8,CR455446,Environment Equipment Capital,Sitework,359
25/02/2016,http://statistics.data.gov.uk/id/local-authority/12UE,Huntingdonshire District Council,184115,98223,5,276,Huntingdon Plant Hire,CR000425,Domestic Refuse,Vehicle Cleaning,620
25/02/2016,http://statistics.data.gov.uk/id/local-authority/12UE,Huntingdonshire District Council,184936,100076,5,"2,193.75",Speakers From The Edge,CR423404,One Leisure St Ives,Entertainments Inc Cable Tv,744
04/02/2016,http://statistics.data.gov.uk/id/local-authority/12UE,Huntingdonshire District Council,182900,100666,5,"9,558.00",Leisure Systems Services Ltd,CR423147,Leisure Centres Capital,Building Mtce,303
18/02/2016,http://statistics.data.gov.uk/id/local-authority/12UE,Huntingdonshire District Council,184559,101110,5,992.88,Asp,CR455201,One Leisure St Ives,Building Mtce,303
25/02/2016,http://statistics.data.gov.uk/id/local-authority/12UE,Huntingdonshire District Council,183764,102034,5,760.75,Brookes,CR422866,Restaurant,Catering,710
11/02/2016,http://statistics.data.gov.uk/id/local-authority/12UE,Huntingdonshire District Council,184089,109792,5,"3,610.33",Cale Briparc Ltd,CR401137,Off Street Parking,Car Park Machines,522
25/02/2016,http://statistics.data.gov.uk/id/local-authority/12UE,Huntingdonshire District Council,184168,113718,5,840,Rsa Environmental Health Limited,CR482415,Human Resources,Consultants,711
18/02/2016,http://statistics.data.gov.uk/id/local-authority/12UE,Huntingdonshire District Council,184456,120582,5,"18,000.00",Cloudbuy Plc,CR480042,Financial Services Mus,Software,206
18/02/2016,http://statistics.data.gov.uk/id/local-authority/12UE,Huntingdonshire District Council,184554,125452,5,150.3,Lead Forensics,CR423143,One Leisure Huntingdon,Advertising/Promoting Services,255
18/02/2016,http://statistics.data.gov.uk/id/local-authority/12UE,Huntingdonshire District Council,184554,125452,5,150.3,Lead Forensics,CR423143,One Leisure Ramsey,Advertising/Promoting Services,255
18/02/2016,http://statistics.data.gov.uk/id/local-authority/12UE,Huntingdonshire District Council,184554,125452,5,150.3,Lead Forensics,CR423143,One Leisure Sawtry,Advertising/Promoting Services,255
18/02/2016,http://statistics.data.gov.uk/id/local-authority/12UE,Huntingdonshire District Council,184554,125452,5,150.3,Lead Forensics,CR423143,One Leisure St Neots,Advertising/Promoting Services,255
11/02/2016,http://statistics.data.gov.uk/id/local-authority/12UE,Huntingdonshire District Council,182960,144552,5,324,Cambridgeshire Chamber Of Commerce,CR411674,Countryside,Advertising/Promoting Services,255
11/02/2016,http://statistics.data.gov.uk/id/local-authority/12UE,Huntingdonshire District Council,183354,144831,5,315.02,Huntingdon Timber Supplies,CR482513,Countryside,Materials,550
25/02/2016,http://statistics.data.gov.uk/id/local-authority/12UE,Huntingdonshire District Council,184440,145577,5,392.95,Huntingdon Timber Supplies,CR482513,Countryside,Materials,550
18/02/2016,http://statistics.data.gov.uk/id/local-authority/12UE,Huntingdonshire District Council,184106,153401,5,576,Direct Plastics Ltd,CR423171,Countryside,Materials,550
25/02/2016,http://statistics.data.gov.uk/id/local-authority/12UE,Huntingdonshire District Council,183625,167709,5,"1,029.92",Arthur Ibbett Ltd,CR000430,Grounds Maintenance,Vehicle Parts & Fittings,625
04/02/2016,http://statistics.data.gov.uk/id/local-authority/12UE,Huntingdonshire District Council,182956,179978,5,294,Barton Petroleum,CR409205,Domestic Refuse,Vehicle Oil & Lubricants,626
04/02/2016,http://statistics.data.gov.uk/id/local-authority/12UE,Huntingdonshire District Council,182956,179978,5,126,Barton Petroleum,CR409205,Recycling,Vehicle Oil & Lubricants,626
04/02/2016,http://statistics.data.gov.uk/id/local-authority/12UE,Huntingdonshire District Council,182553,254780,5,270,Autoelec Cambs,CR480035,Grounds Maintenance,Vehicle Maintenance External,619
11/02/2016,http://statistics.data.gov.uk/id/local-authority/12UE,Huntingdonshire District Council,184083,254783,5,406.19,Autoelec Cambs,CR480035,Street Cleaning,Vehicle Parts & Fittings,625
04/02/2016,http://statistics.data.gov.uk/id/local-authority/12UE,Huntingdonshire District Council,182511,265737,5,69.08,Westminster Foodservice,CR455156,One Leisure St Ives,Bar Provisions,558
04/02/2016,http://statistics.data.gov.uk/id/local-authority/12UE,Huntingdonshire District Council,182511,265737,5,185.86,Westminster Foodservice,CR455156,One Leisure St Ives,Catering Materials,559
04/02/2016,http://statistics.data.gov.uk/id/local-authority/12UE,Huntingdonshire District Council,182511,265737,5,16.67,Westminster Foodservice,CR455156,One Leisure St Ives,Confectionery,572
11/02/2016,http://statistics.data.gov.uk/id/local-authority/12UE,Huntingdonshire District Council,183051,266170,5,110.33,Westminster Foodservice,CR455156,One Leisure St Ives,Bar Provisions,558
11/02/2016,http://statistics.data.gov.uk/id/local-authority/12UE,Huntingdonshire District Council,183051,266170,5,155.13,Westminster Foodservice,CR455156,One Leisure St Ives,Catering Materials,559
11/02/2016,http://statistics.data.gov.uk/id/local-authority/12UE,Huntingdonshire District Council,183051,266170,5,16.68,Westminster Foodservice,CR455156,One Leisure St Ives,Confectionery,572
18/02/2016,http://statistics.data.gov.uk/id/local-authority/12UE,Huntingdonshire District Council,183263,266564,5,98.1,Westminster Foodservice,CR455156,One Leisure St Ives,Bar Provisions,558
18/02/2016,http://statistics.data.gov.uk/id/local-authority/12UE,Huntingdonshire District Council,183263,266564,5,157.81,Westminster Foodservice,CR455156,One Leisure St Ives,Catering Materials,559
18/02/2016,http://statistics.data.gov.uk/id/local-authority/12UE,Huntingdonshire District Council,183263,266564,5,16.67,Westminster Foodservice,CR455156,One Leisure St Ives,Confectionery,572
25/02/2016,http://statistics.data.gov.uk/id/local-authority/12UE,Huntingdonshire District Council,184943,280455,5,264.1,Britannia Harrison & Rowley Ltd,CR406998,Homelessness Management,Removal/Storage,750
04/02/2016,http://statistics.data.gov.uk/id/local-authority/12UE,Huntingdonshire District Council,183242,286212,5,62.39,South Lincs Food Service,CR033415,One Leisure Huntingdon,Bar Provisions,558
04/02/2016,http://statistics.data.gov.uk/id/local-authority/12UE,Huntingdonshire District Council,183242,286212,5,177.75,South Lincs Food Service,CR033415,One Leisure Huntingdon,Catering Materials,559
04/02/2016,http://statistics.data.gov.uk/id/local-authority/12UE,Huntingdonshire District Council,183242,286212,5,22.77,South Lincs Food Service,CR033415,One Leisure Huntingdon,Confectionery,572
18/02/2016,http://statistics.data.gov.uk/id/local-authority/12UE,Huntingdonshire District Council,184308,290398,5,2.98,South Lincs Food Service,CR033415,One Leisure St Ives,Bar Provisions,558
18/02/2016,http://statistics.data.gov.uk/id/local-authority/12UE,Huntingdonshire District Council,184308,290398,5,353.74,South Lincs Food Service,CR033415,One Leisure St Ives,Catering Materials,559
18/02/2016,http://statistics.data.gov.uk/id/local-authority/12UE,Huntingdonshire District Council,184308,290398,5,46.56,South Lincs Food Service,CR033415,One Leisure St Ives,Confectionery,572
25/02/2016,http://statistics.data.gov.uk/id/local-authority/12UE,Huntingdonshire District Council,184018,290891,5,54.58,South Lincs Food Service,CR033415,One Leisure Huntingdon,Bar Provisions,558
25/02/2016,http://statistics.data.gov.uk/id/local-authority/12UE,Huntingdonshire District Council,184018,290891,5,214.86,South Lincs Food Service,CR033415,One Leisure Huntingdon,Catering Materials,559
25/02/2016,http://statistics.data.gov.uk/id/local-authority/12UE,Huntingdonshire District Council,184018,290891,5,38.91,South Lincs Food Service,CR033415,One Leisure Huntingdon,Materials,550
25/02/2016,http://statistics.data.gov.uk/id/local-authority/12UE,Huntingdonshire District Council,184841,292908,5,57.55,South Lincs Food Service,CR033415,One Leisure St Ives,Bar Provisions,558
25/02/2016,http://statistics.data.gov.uk/id/local-authority/12UE,Huntingdonshire District Council,184841,292908,5,287.2,South Lincs Food Service,CR033415,One Leisure St Ives,Catering Materials,559
25/02/2016,http://statistics.data.gov.uk/id/local-authority/12UE,Huntingdonshire District Council,184841,292908,5,42.01,South Lincs Food Service,CR033415,One Leisure St Ives,Confectionery,572
18/02/2016,http://statistics.data.gov.uk/id/local-authority/12UE,Huntingdonshire District Council,183955,314118,5,"1,142.10",Venn Group Recruitment,CR415403,Housing  Benefits Admin,Hired Staff,100
11/02/2016,http://statistics.data.gov.uk/id/local-authority/12UE,Huntingdonshire District Council,184137,323908,5,250.2,Smi Group,CR423139,Grounds Maintenance,Protective Clothing & Uniforms,163
11/02/2016,http://statistics.data.gov.uk/id/local-authority/12UE,Huntingdonshire District Council,184141,325056,5,538.56,Smi Group,CR423139,Grounds Maintenance,Protective Clothing & Uniforms,163
25/02/2016,http://statistics.data.gov.uk/id/local-authority/12UE,Huntingdonshire District Council,184147,331169,5,280.8,Smi Group,CR423139,Domestic Refuse,Protective Clothing & Uniforms,163
11/02/2016,http://statistics.data.gov.uk/id/local-authority/12UE,Huntingdonshire District Council,183338,408888,5,357.13,Dennis Eagle Ltd,CR000200,Recycling,Vehicle Maintenance External,619
25/02/2016,http://statistics.data.gov.uk/id/local-authority/12UE,Huntingdonshire District Council,183957,520608,5,438.48,Wilkin Chapman Llp,CR455302,N N D R Administration,Enquiries,723
25/02/2016,http://statistics.data.gov.uk/id/local-authority/12UE,Huntingdonshire District Council,183771,536108,5,252,Metro Rod Ltd,CR479927,One Leisure St Neots,Building Mtce,303
25/02/2016,http://statistics.data.gov.uk/id/local-authority/12UE,Huntingdonshire District Council,184136,546181,5,263.76,Ecocleen Services Limited,CR406985,Public Conveniences,Building Mtce,303
04/02/2016,http://statistics.data.gov.uk/id/local-authority/12UE,Huntingdonshire District Council,182564,592716,5,621.12,Lacons,CR422174,One Leisure St Ives,Bar Provisions,558
04/02/2016,http://statistics.data.gov.uk/id/local-authority/12UE,Huntingdonshire District Council,182564,592716,5,56.45,Lacons,CR422174,One Leisure St Ives,Materials,550
11/02/2016,http://statistics.data.gov.uk/id/local-authority/12UE,Huntingdonshire District Council,182844,593409,5,450.77,Lacons,CR422174,One Leisure St Ives,Bar Provisions,558
04/02/2016,http://statistics.data.gov.uk/id/local-authority/12UE,Huntingdonshire District Council,182896,593436,5,493.36,Lacons,CR422174,One Leisure St Ives,Bar Provisions,558
18/02/2016,http://statistics.data.gov.uk/id/local-authority/12UE,Huntingdonshire District Council,183379,594326,5,258.95,Lacons,CR422174,One Leisure St Ives,Bar Provisions,558
25/02/2016,http://statistics.data.gov.uk/id/local-authority/12UE,Huntingdonshire District Council,183553,594724,5,457.72,Lacons,CR422174,One Leisure Huntingdon,Bar Provisions,558
25/02/2016,http://statistics.data.gov.uk/id/local-authority/12UE,Huntingdonshire District Council,183553,594724,5,18.82,Lacons,CR422174,One Leisure Huntingdon,Gas Cylinders (Incl. Bars),567
25/02/2016,http://statistics.data.gov.uk/id/local-authority/12UE,Huntingdonshire District Council,183555,595002,5,"2,356.87",Lacons,CR422174,One Leisure St Ives,Bar Provisions,558
25/02/2016,http://statistics.data.gov.uk/id/local-authority/12UE,Huntingdonshire District Council,183958,647280,5,594,Callcredit Ltd,CR455548,Council Tax,Enquiries,723
25/02/2016,http://statistics.data.gov.uk/id/local-authority/12UE,Huntingdonshire District Council,183958,647280,5,91.2,Callcredit Ltd,CR455548,Financial Services Mus,Enquiries,723
25/02/2016,http://statistics.data.gov.uk/id/local-authority/12UE,Huntingdonshire District Council,183958,647280,5,198,Callcredit Ltd,CR455548,Revenue Services Mus,Enquiries,723
04/02/2016,http://statistics.data.gov.uk/id/local-authority/12UE,Huntingdonshire District Council,592368,786538,6,"2,000.00",Breckland Council,CR416546,Housing  Benefits Admin,Software,206
11/02/2016,http://statistics.data.gov.uk/id/local-authority/12UE,Huntingdonshire District Council,182894,787106,5,279.78,J P Lennard Ltd,CR028595,One Leisure St Ives,Equipment,500
11/02/2016,http://statistics.data.gov.uk/id/local-authority/12UE,Huntingdonshire District Council,182894,787106,5,59.53,J P Lennard Ltd,CR028595,One Leisure St Ives,Sports Equipment,524
25/02/2016,http://statistics.data.gov.uk/id/local-authority/12UE,Huntingdonshire District Council,184423,1638328,5,327.6,Interaction Recruitment Plc,CR007892,Financial Services Mus,Hired Staff,100
11/02/2016,http://statistics.data.gov.uk/id/local-authority/12UE,Huntingdonshire District Council,182908,2498586,5,"1,243.20",Matchtech Group Uk Ltd,CR423084,Dc Application Processing,Consultants,711
11/02/2016,http://statistics.data.gov.uk/id/local-authority/12UE,Huntingdonshire District Council,182903,2498587,5,436.8,Matchtech Group Uk Ltd,CR423084,Dc Application Processing,Consultants,711
11/02/2016,http://statistics.data.gov.uk/id/local-authority/12UE,Huntingdonshire District Council,182937,3040415,5,471.61,Hopwells Ltd,CR097542,One Leisure St Ives,Catering Materials,559
25/02/2016,http://statistics.data.gov.uk/id/local-authority/12UE,Huntingdonshire District Council,184143,3073555,5,"1,350.00",First In Service Ltd,CR422285,E F H And Depots,Building Mtce,303
04/02/2016,http://statistics.data.gov.uk/id/local-authority/12UE,Huntingdonshire District Council,182856,3074891,5,"2,606.40",First In Service Ltd,CR422285,Pathfinder House Site,Plant & Equipment Maintenance,380
18/02/2016,http://statistics.data.gov.uk/id/local-authority/12UE,Huntingdonshire District Council,183188,3075497,5,"1,631.64",First In Service Ltd,CR422285,One Leisure St Ives,Plant & Equipment Maintenance,380
04/02/2016,http://statistics.data.gov.uk/id/local-authority/12UE,Huntingdonshire District Council,183728,3075570,5,835.2,First In Service Ltd,CR422285,Leisure Centres Capital,Building Mtce,303
18/02/2016,http://statistics.data.gov.uk/id/local-authority/12UE,Huntingdonshire District Council,183225,3075638,5,"1,314.00",First In Service Ltd,CR422285,Pathfinder House Site,Building Mtce,303
18/02/2016,http://statistics.data.gov.uk/id/local-authority/12UE,Huntingdonshire District Council,183190,3076768,5,562.8,First In Service Ltd,CR422285,One Leisure St Ives,Plant & Equipment Maintenance,380
04/02/2016,http://statistics.data.gov.uk/id/local-authority/12UE,Huntingdonshire District Council,182632,3085127,5,882,Zoho Corporation Private Ltd,CR452714,Helpdesk,Software,206
11/02/2016,http://statistics.data.gov.uk/id/local-authority/12UE,Huntingdonshire District Council,182934,3114895,5,348,Cipfa Business Limited,CR480088,Financial Services Mus,Training,130
25/02/2016,http://statistics.data.gov.uk/id/local-authority/12UE,Huntingdonshire District Council,184747,3152767,5,"1,252.08",Venn Group Recruitment,CR415403,Housing  Benefits Admin,Hired Staff,100
04/02/2016,http://statistics.data.gov.uk/id/local-authority/12UE,Huntingdonshire District Council,182852,3852154,1,447.6,Espo,CR006566,Chief Executive & Comt,Furniture,200
04/02/2016,http://statistics.data.gov.uk/id/local-authority/12UE,Huntingdonshire District Council,182570,3852198,1,223.46,Espo,CR006566,One Leisure St Ives,Cleaning Materials,443
04/02/2016,http://statistics.data.gov.uk/id/local-authority/12UE,Huntingdonshire District Council,182570,3852198,1,85.55,Espo,CR006566,One Leisure St Ives,Materials,550
04/02/2016,http://statistics.data.gov.uk/id/local-authority/12UE,Huntingdonshire District Council,182570,3852198,1,48,Espo,CR006566,One Leisure St Ives,Sports Equipment,524
11/02/2016,http://statistics.data.gov.uk/id/local-authority/12UE,Huntingdonshire District Council,182984,5494218,5,278.4,Antalis Ltd,CR479468,Document Centre,Paper,562
25/02/2016,http://statistics.data.gov.uk/id/local-authority/12UE,Huntingdonshire District Council,183559,5539454,5,144.9,Antalis Ltd,CR479468,Document Centre,Paper,562
25/02/2016,http://statistics.data.gov.uk/id/local-authority/12UE,Huntingdonshire District Council,183559,5539454,5,134.76,Antalis Ltd,CR479468,Document Centre,Paper,562
25/02/2016,http://statistics.data.gov.uk/id/local-authority/12UE,Huntingdonshire District Council,183559,5539454,5,98.4,Antalis Ltd,CR479468,Document Centre,Paper,562
25/02/2016,http://statistics.data.gov.uk/id/local-authority/12UE,Huntingdonshire District Council,183560,5539455,5,278.4,Antalis Ltd,CR479468,Document Centre,Paper,562
18/02/2016,http://statistics.data.gov.uk/id/local-authority/12UE,Huntingdonshire District Council,183280,7008188,5,"1,140.00",Idox,CR481134,Licences,Software,206
25/02/2016,http://statistics.data.gov.uk/id/local-authority/12UE,Huntingdonshire District Council,184322,9022016,5,270,Huntingdonshire  Fencing Club,CR415444,Leisure Development,Instructors/Tutors,720
04/02/2016,http://statistics.data.gov.uk/id/local-authority/12UE,Huntingdonshire District Council,183282,9177751,6,"5,280.00",East Of England Lga,CR422620,Chief Executive & Comt,Consultants,711
04/02/2016,http://statistics.data.gov.uk/id/local-authority/12UE,Huntingdonshire District Council,183286,9178049,6,"4,455.00",East Of England Lga,CR422620,Chief Executive & Comt,Consultants,711
25/02/2016,http://statistics.data.gov.uk/id/local-authority/12UE,Huntingdonshire District Council,183341,10150899,5,343.57,Lucozade Ribena Suntory Ltd,CR422660,One Leisure Ramsey,Vending Materials,560
25/02/2016,http://statistics.data.gov.uk/id/local-authority/12UE,Huntingdonshire District Council,183549,10152496,5,261.28,Lucozade Ribena Suntory Ltd,CR422660,One Leisure St Neots,Vending Materials,560
25/02/2016,http://statistics.data.gov.uk/id/local-authority/12UE,Huntingdonshire District Council,184447,10220097,5,841.7,Madingley Mulch,CR409002,Countryside,Materials,550
25/02/2016,http://statistics.data.gov.uk/id/local-authority/12UE,Huntingdonshire District Council,184447,10220097,5,841.7,Madingley Mulch,CR409002,Countryside,Materials,550
11/02/2016,http://statistics.data.gov.uk/id/local-authority/12UE,Huntingdonshire District Council,183967,10655075,5,"301,000.00",Cambridgeshire County Council,CR017440,Planning Capital,Contribution (Paid Out),810
11/02/2016,http://statistics.data.gov.uk/id/local-authority/12UE,Huntingdonshire District Council,183629,10655796,5,"2,783.90",Cambridgeshire County Council,CR006678,Trade Refuse,Waste Disposal,763
11/02/2016,http://statistics.data.gov.uk/id/local-authority/12UE,Huntingdonshire District Council,183587,10656282,5,"147,480.00",Cambridgeshire County Council,CR006678,Human Resources,Client Contracts,779
11/02/2016,http://statistics.data.gov.uk/id/local-authority/12UE,Huntingdonshire District Council,183233,10656739,5,"4,307.14",Cambridgeshire County Council,CR033052,Community Safety,Grants (Paid Out),800
18/02/2016,http://statistics.data.gov.uk/id/local-authority/12UE,Huntingdonshire District Council,184495,12068738,5,318.44,Nisbets,CR412311,One Leisure St Ives,Equipment,500
18/02/2016,http://statistics.data.gov.uk/id/local-authority/12UE,Huntingdonshire District Council,183248,15502464,5,510,Ener-G Combined Power Ltd,CR422879,One Leisure St Ives,Plant & Equipment Maintenance,380
18/02/2016,http://statistics.data.gov.uk/id/local-authority/12UE,Huntingdonshire District Council,183247,15502480,5,396.73,Ener-G Combined Power Ltd,CR422879,One Leisure St Ives,Plant & Equipment Maintenance,380
18/02/2016,http://statistics.data.gov.uk/id/local-authority/12UE,Huntingdonshire District Council,184056,16001331,5,"1,049.90",Technogym Uk Ltd,CR033037,One Leisure St Ives,Equipment Maintenance,511
18/02/2016,http://statistics.data.gov.uk/id/local-authority/12UE,Huntingdonshire District Council,184386,51225816,5,258.26,Swalec,CR407130,Off Street Parking,Electricity,420
04/02/2016,http://statistics.data.gov.uk/id/local-authority/12UE,Huntingdonshire District Council,183201,55431286,5,480,Archant Herts & Cambs,CR415764,Leisure Centres Overall,Advertising/Promoting Services,255
04/02/2016,http://statistics.data.gov.uk/id/local-authority/12UE,Huntingdonshire District Council,183202,55431307,5,466.2,Archant Herts & Cambs,CR415764,Leisure Centres Overall,Advertising/Promoting Services,255
04/02/2016,http://statistics.data.gov.uk/id/local-authority/12UE,Huntingdonshire District Council,183206,55431360,5,371.7,Archant Herts & Cambs,CR415764,Leisure Centres Overall,Advertising/Promoting Services,255
04/02/2016,http://statistics.data.gov.uk/id/local-authority/12UE,Huntingdonshire District Council,183198,55431612,5,257.15,Archant Herts & Cambs,CR415764,Leisure Centres Overall,Advertising/Promoting Services,255
11/02/2016,http://statistics.data.gov.uk/id/local-authority/12UE,Huntingdonshire District Council,183199,55438095,5,371.7,Archant Herts & Cambs,CR415764,One Leisure St Ives,Advertising/Promoting Services,255
18/02/2016,http://statistics.data.gov.uk/id/local-authority/12UE,Huntingdonshire District Council,183197,55445721,5,371.7,Archant Herts & Cambs,CR415764,Leisure Centres Overall,Advertising/Promoting Services,255
18/02/2016,http://statistics.data.gov.uk/id/local-authority/12UE,Huntingdonshire District Council,183211,55446016,5,257.15,Archant Herts & Cambs,CR415764,Leisure Centres Overall,Advertising/Promoting Services,255
25/02/2016,http://statistics.data.gov.uk/id/local-authority/12UE,Huntingdonshire District Council,184400,55455503,5,302.4,Archant Herts & Cambs,CR415764,One Leisure St Ives,Recruitment Costs,120
25/02/2016,http://statistics.data.gov.uk/id/local-authority/12UE,Huntingdonshire District Council,184397,55455557,5,371.7,Archant Herts & Cambs,CR415764,One Leisure St Ives,Advertising/Promoting Services,255
25/02/2016,http://statistics.data.gov.uk/id/local-authority/12UE,Huntingdonshire District Council,184398,55456524,5,283.5,Archant Herts & Cambs,CR415764,One Leisure St Ives,Advertising/Promoting Services,255
04/02/2016,http://statistics.data.gov.uk/id/local-authority/12UE,Huntingdonshire District Council,182615,58370091,5,998.15,Marshall Motor Group,CR009641,Off Street Parking,Vehicle Parts & Fittings,625
11/02/2016,http://statistics.data.gov.uk/id/local-authority/12UE,Huntingdonshire District Council,182985,58370386,5,466.99,Marshall Motor Group,CR009641,Grounds Maintenance,Vehicle Parts & Fittings,625
25/02/2016,http://statistics.data.gov.uk/id/local-authority/12UE,Huntingdonshire District Council,184130,58371689,5,280.26,Marshall Motor Group,CR009641,Off Street Parking,Vehicle Parts & Fittings,625
04/02/2016,http://statistics.data.gov.uk/id/local-authority/12UE,Huntingdonshire District Council,182597,61343125,5,535.36,Johnston Engineering Ltd,CR029831,Street Cleaning,Vehicle Parts & Fittings,625
11/02/2016,http://statistics.data.gov.uk/id/local-authority/12UE,Huntingdonshire District Council,184122,61351169,5,844.86,Johnston Engineering Ltd,CR029831,Street Cleaning,Vehicle Parts & Fittings,625
25/02/2016,http://statistics.data.gov.uk/id/local-authority/12UE,Huntingdonshire District Council,184121,61351812,5,"1,132.06",Johnston Engineering Ltd,CR029831,Street Cleaning,Vehicle Parts & Fittings,625
04/02/2016,http://statistics.data.gov.uk/id/local-authority/12UE,Huntingdonshire District Council,183668,65230155,5,"1,345.94",Johnston Engineering Ltd,CR029831,Street Cleaning,Vehicle Parts & Fittings,625
18/02/2016,http://statistics.data.gov.uk/id/local-authority/12UE,Huntingdonshire District Council,183306,78937813,5,267.3,Vodafone Limited,CR029120,Off Street Parking,Telephone &Mobile Phonecharges,240
04/02/2016,http://statistics.data.gov.uk/id/local-authority/12UE,Huntingdonshire District Council,182968,80539748,5,344.98,Imperial Commercials Ltd,CR423142,Recycling,Vehicle Parts & Fittings,625
25/02/2016,http://statistics.data.gov.uk/id/local-authority/12UE,Huntingdonshire District Council,184120,80540201,5,391.36,Imperial Commercials Ltd,CR423142,Recycling,Vehicle Parts & Fittings,625
18/02/2016,http://statistics.data.gov.uk/id/local-authority/12UE,Huntingdonshire District Council,184338,90188077,5,"1,380.00",Freeths  Llp,CR480787,Chief Executive & Comt,Legal Fees,729
18/02/2016,http://statistics.data.gov.uk/id/local-authority/12UE,Huntingdonshire District Council,184337,90189308,5,"1,585.56",Freeths  Llp,CR480787,Chief Executive & Comt,Legal Fees,729
25/02/2016,http://statistics.data.gov.uk/id/local-authority/12UE,Huntingdonshire District Council,183959,91226466,5,682.59,Swalec,CR407130,Off Street Parking,Electricity,420
25/02/2016,http://statistics.data.gov.uk/id/local-authority/12UE,Huntingdonshire District Council,183729,92135056,5,"6,199.20",Neopost,CR400652,Elections,Equipment,500
04/02/2016,http://statistics.data.gov.uk/id/local-authority/12UE,Huntingdonshire District Council,183388,92188907,5,505.27,Speedo International Limited,CR41427,One Leisure Ramsey,Materials For Resale,570
04/02/2016,http://statistics.data.gov.uk/id/local-authority/12UE,Huntingdonshire District Council,182647,96321112,5,183.39,Terberg Matec Uk Ltd,CR402183,Domestic Refuse,Vehicle Parts & Fittings,625
04/02/2016,http://statistics.data.gov.uk/id/local-authority/12UE,Huntingdonshire District Council,182647,96321112,5,78.6,Terberg Matec Uk Ltd,CR402183,Recycling,Vehicle Parts & Fittings,625
04/02/2016,http://statistics.data.gov.uk/id/local-authority/12UE,Huntingdonshire District Council,183708,96321113,5,367.56,Terberg Matec Uk Ltd,CR402183,Domestic Refuse,Insurance Excess,797
04/02/2016,http://statistics.data.gov.uk/id/local-authority/12UE,Huntingdonshire District Council,183015,96321207,5,"1,357.84",Terberg Matec Uk Ltd,CR402183,Recycling,Vehicle Parts & Fittings,625
04/02/2016,http://statistics.data.gov.uk/id/local-authority/12UE,Huntingdonshire District Council,183017,96321208,5,841.3,Terberg Matec Uk Ltd,CR402183,Domestic Refuse,Vehicle Parts & Fittings,625
04/02/2016,http://statistics.data.gov.uk/id/local-authority/12UE,Huntingdonshire District Council,183014,96321256,5,375.37,Terberg Matec Uk Ltd,CR402183,Recycling,Vehicle Parts & Fittings,625
18/02/2016,http://statistics.data.gov.uk/id/local-authority/12UE,Huntingdonshire District Council,184153,96321786,5,420.6,Terberg Matec Uk Ltd,CR402183,Domestic Refuse,Vehicle Parts & Fittings,625
18/02/2016,http://statistics.data.gov.uk/id/local-authority/12UE,Huntingdonshire District Council,184153,96321786,5,180.26,Terberg Matec Uk Ltd,CR402183,Recycling,Vehicle Parts & Fittings,625
25/02/2016,http://statistics.data.gov.uk/id/local-authority/12UE,Huntingdonshire District Council,184156,96322416,5,256.45,Terberg Matec Uk Ltd,CR402183,Domestic Refuse,Vehicle Maintenance External,619
25/02/2016,http://statistics.data.gov.uk/id/local-authority/12UE,Huntingdonshire District Council,184421,99037055,5,"1,200.00",Advanced Business Solutions,CR032921,Financial Services Mus,Training,130
04/02/2016,http://statistics.data.gov.uk/id/local-authority/12UE,Huntingdonshire District Council,182993,113077952,5,"1,395.00",Kone Lifts Ltd,CR000483,Pathfinder House Site,Plant & Equipment Maintenance,380
04/02/2016,http://statistics.data.gov.uk/id/local-authority/12UE,Huntingdonshire District Council,183005,113077953,5,"1,859.98",Kone Lifts Ltd,CR000483,E F H And Depots,Plant & Equipment Maintenance,380
04/02/2016,http://statistics.data.gov.uk/id/local-authority/12UE,Huntingdonshire District Council,183226,118147628,5,284.76,Anglian Water,CR000071,Parks & Open Spaces,Water & Sewerage,432
25/02/2016,http://statistics.data.gov.uk/id/local-authority/12UE,Huntingdonshire District Council,183759,126877703,5,"1,167.70",Anglian Water,CR000071,One Leisure Sawtry,Water & Sewerage,432
04/02/2016,http://statistics.data.gov.uk/id/local-authority/12UE,Huntingdonshire District Council,183670,130588239,5,677.69,Anglian Water,CR000071,E F H And Depots,Water & Sewerage,432
25/02/2016,http://statistics.data.gov.uk/id/local-authority/12UE,Huntingdonshire District Council,184797,171254309,5,285,Swalec,CR407130,Oak Tree Health Centre,Electricity,420
18/02/2016,http://statistics.data.gov.uk/id/local-authority/12UE,Huntingdonshire District Council,184379,341225796,5,"3,014.22",Swalec,CR407130,One Leisure Ramsey,Electricity,420
04/02/2016,http://statistics.data.gov.uk/id/local-authority/12UE,Huntingdonshire District Council,183683,344529160,5,451.3,Parker Merchanting,CR415428,Countryside,Protective Clothing & Uniforms,163
11/02/2016,http://statistics.data.gov.uk/id/local-authority/12UE,Huntingdonshire District Council,183684,344542539,5,345.6,Parker Merchanting,CR415428,Domestic Refuse,Cleaning Materials,443
18/02/2016,http://statistics.data.gov.uk/id/local-authority/12UE,Huntingdonshire District Council,184347,381239505,5,"3,640.58",Swalec,CR407130,One Leisure Huntingdon,Electricity,420
25/02/2016,http://statistics.data.gov.uk/id/local-authority/12UE,Huntingdonshire District Council,184790,481291201,5,"3,659.40",Swalec,CR407130,Housing Services Other,Electricity,420
25/02/2016,http://statistics.data.gov.uk/id/local-authority/12UE,Huntingdonshire District Council,184365,581127268,5,624.08,Swalec,CR407130,Off Street Parking,Electricity,420
18/02/2016,http://statistics.data.gov.uk/id/local-authority/12UE,Huntingdonshire District Council,184373,661225560,5,"2,803.50",Swalec,CR407130,Bus Stations,Electricity,420
18/02/2016,http://statistics.data.gov.uk/id/local-authority/12UE,Huntingdonshire District Council,184387,841226380,5,595.71,Swalec,CR407130,Off Street Parking,Electricity,420
25/02/2016,http://statistics.data.gov.uk/id/local-authority/12UE,Huntingdonshire District Council,183599,900729678,5,850.2,Portakabin Ltd,CR478566,Miscellaneous Grants,Grants (Paid Out),800
25/02/2016,http://statistics.data.gov.uk/id/local-authority/12UE,Huntingdonshire District Council,183598,900729679,5,807.04,Portakabin Ltd,CR478566,Miscellaneous Grants,Grants (Paid Out),800
18/02/2016,http://statistics.data.gov.uk/id/local-authority/12UE,Huntingdonshire District Council,184369,941240466,5,"4,053.26",Swalec,CR407130,One Leisure Sawtry,Electricity,420
11/02/2016,http://statistics.data.gov.uk/id/local-authority/12UE,Huntingdonshire District Council,182979,967393243,5,45.77,Office Depot Uk Ltd,CR455229,Customer Service Centres,Equipment,500
11/02/2016,http://statistics.data.gov.uk/id/local-authority/12UE,Huntingdonshire District Council,182979,967393243,5,91.53,Office Depot Uk Ltd,CR455229,Customer Service Centres,Equipment,500
11/02/2016,http://statistics.data.gov.uk/id/local-authority/12UE,Huntingdonshire District Council,182979,967393243,5,45.77,Office Depot Uk Ltd,CR455229,Customer Service Centres,Equipment,500
11/02/2016,http://statistics.data.gov.uk/id/local-authority/12UE,Huntingdonshire District Council,182979,967393243,5,91.54,Office Depot Uk Ltd,CR455229,Customer Service Centres,Equipment,500
11/02/2016,http://statistics.data.gov.uk/id/local-authority/12UE,Huntingdonshire District Council,182851,967436113,5,243.07,Office Depot Uk Ltd,CR455229,Document Centre,Equipment Maintenance,511
11/02/2016,http://statistics.data.gov.uk/id/local-authority/12UE,Huntingdonshire District Council,182851,967436113,5,4.73,Office Depot Uk Ltd,CR455229,Financial Services Mus,Stationery,225
11/02/2016,http://statistics.data.gov.uk/id/local-authority/12UE,Huntingdonshire District Council,182851,967436113,5,2.59,Office Depot Uk Ltd,CR455229,Financial Services Mus,Stationery,225
11/02/2016,http://statistics.data.gov.uk/id/local-authority/12UE,Huntingdonshire District Council,182851,967436113,5,4.44,Office Depot Uk Ltd,CR455229,Financial Services Mus,Stationery,225
11/02/2016,http://statistics.data.gov.uk/id/local-authority/12UE,Huntingdonshire District Council,182851,967436113,5,6.88,Office Depot Uk Ltd,CR455229,Financial Services Mus,Stationery,225
11/02/2016,http://statistics.data.gov.uk/id/local-authority/12UE,Huntingdonshire District Council,182851,967436113,5,0.07,Office Depot Uk Ltd,CR455229,Financial Services Mus,Stationery,225
11/02/2016,http://statistics.data.gov.uk/id/local-authority/12UE,Huntingdonshire District Council,182851,967436113,5,2.12,Office Depot Uk Ltd,CR455229,Financial Services Mus,Stationery,225
18/02/2016,http://statistics.data.gov.uk/id/local-authority/12UE,Huntingdonshire District Council,182950,967456769,5,818.5,Office Depot Uk Ltd,CR455229,C C T V,Equipment Maintenance,511
11/02/2016,http://statistics.data.gov.uk/id/local-authority/12UE,Huntingdonshire District Council,183255,1111272690,5,"12,000.00",Deloitte Llp,CR400573,Project Contributions,Subcontractors,777
04/02/2016,http://statistics.data.gov.uk/id/local-authority/12UE,Huntingdonshire District Council,182454,1122177116,5,524.22,Konica Minolta,CR478866,Document Centre,Equipment Maintenance,511
11/02/2016,http://statistics.data.gov.uk/id/local-authority/12UE,Huntingdonshire District Council,182927,1224023912,5,2.4,Orange Airtime,CR455799,Animal Welfare,Telephone &Mobile Phonecharges,240
11/02/2016,http://statistics.data.gov.uk/id/local-authority/12UE,Huntingdonshire District Council,182927,1224023912,5,26.4,Orange Airtime,CR455799,Business & Enterprise Support,Telephone &Mobile Phonecharges,240
11/02/2016,http://statistics.data.gov.uk/id/local-authority/12UE,Huntingdonshire District Council,182927,1224023912,5,2.4,Orange Airtime,CR455799,Call Centre,Telephone &Mobile Phonecharges,240
11/02/2016,http://statistics.data.gov.uk/id/local-authority/12UE,Huntingdonshire District Council,182927,1224023912,5,57.6,Orange Airtime,CR455799,C C T V,Telephone &Mobile Phonecharges,240
11/02/2016,http://statistics.data.gov.uk/id/local-authority/12UE,Huntingdonshire District Council,182927,1224023912,5,12,Orange Airtime,CR455799,Central Services M Us,Telephone &Mobile Phonecharges,240
11/02/2016,http://statistics.data.gov.uk/id/local-authority/12UE,Huntingdonshire District Council,182927,1224023912,5,175.92,Orange Airtime,CR455799,Chief Executive & Comt,Telephone &Mobile Phonecharges,240
11/02/2016,http://statistics.data.gov.uk/id/local-authority/12UE,Huntingdonshire District Council,182927,1224023912,5,33.6,Orange Airtime,CR455799,Community Safety,Telephone &Mobile Phonecharges,240
11/02/2016,http://statistics.data.gov.uk/id/local-authority/12UE,Huntingdonshire District Council,182927,1224023912,5,28.8,Orange Airtime,CR455799,Community Services M Us,Telephone &Mobile Phonecharges,240
11/02/2016,http://statistics.data.gov.uk/id/local-authority/12UE,Huntingdonshire District Council,182927,1224023912,5,4.8,Orange Airtime,CR455799,Council Tax,Telephone &Mobile Phonecharges,240
11/02/2016,http://statistics.data.gov.uk/id/local-authority/12UE,Huntingdonshire District Council,182927,1224023912,5,40.9,Orange Airtime,CR455799,Countryside,Telephone &Mobile Phonecharges,240
11/02/2016,http://statistics.data.gov.uk/id/local-authority/12UE,Huntingdonshire District Council,182927,1224023912,5,12,Orange Airtime,CR455799,Customer Service Centres,Telephone &Mobile Phonecharges,240
11/02/2016,http://statistics.data.gov.uk/id/local-authority/12UE,Huntingdonshire District Council,182927,1224023912,5,24,Orange Airtime,CR455799,Development Team,Telephone &Mobile Phonecharges,240
11/02/2016,http://statistics.data.gov.uk/id/local-authority/12UE,Huntingdonshire District Council,182927,1224023912,5,4.8,Orange Airtime,CR455799,Document Centre,Telephone &Mobile Phonecharges,240
11/02/2016,http://statistics.data.gov.uk/id/local-authority/12UE,Huntingdonshire District Council,182927,1224023912,5,26.52,Orange Airtime,CR455799,Electoral Registration,Telephone &Mobile Phonecharges,240
11/02/2016,http://statistics.data.gov.uk/id/local-authority/12UE,Huntingdonshire District Council,182927,1224023912,5,221.32,Orange Airtime,CR455799,Environmental Health M Us,Telephone &Mobile Phonecharges,240
11/02/2016,http://statistics.data.gov.uk/id/local-authority/12UE,Huntingdonshire District Council,182927,1224023912,5,141.6,Orange Airtime,CR455799,Environmental Management,Telephone &Mobile Phonecharges,240
11/02/2016,http://statistics.data.gov.uk/id/local-authority/12UE,Huntingdonshire District Council,182927,1224023912,5,4.8,Orange Airtime,CR455799,Financial Services Mus,Telephone &Mobile Phonecharges,240
11/02/2016,http://statistics.data.gov.uk/id/local-authority/12UE,Huntingdonshire District Council,182927,1224023912,5,33,Orange Airtime,CR455799,Helpdesk,Telephone &Mobile Phonecharges,240
11/02/2016,http://statistics.data.gov.uk/id/local-authority/12UE,Huntingdonshire District Council,182927,1224023912,5,67.2,Orange Airtime,CR455799,Housing  Benefits Admin,Telephone &Mobile Phonecharges,240
11/02/2016,http://statistics.data.gov.uk/id/local-authority/12UE,Huntingdonshire District Council,182927,1224023912,5,33.12,Orange Airtime,CR455799,Housing Management Units,Telephone &Mobile Phonecharges,240
11/02/2016,http://statistics.data.gov.uk/id/local-authority/12UE,Huntingdonshire District Council,182927,1224023912,5,4.8,Orange Airtime,CR455799,Human Resources,Telephone &Mobile Phonecharges,240
11/02/2016,http://statistics.data.gov.uk/id/local-authority/12UE,Huntingdonshire District Council,182927,1224023912,5,14.4,Orange Airtime,CR455799,Information Manager,Telephone &Mobile Phonecharges,240
11/02/2016,http://statistics.data.gov.uk/id/local-authority/12UE,Huntingdonshire District Council,182927,1224023912,5,12,Orange Airtime,CR455799,Leisure Centres Overall,Telephone &Mobile Phonecharges,240
11/02/2016,http://statistics.data.gov.uk/id/local-authority/12UE,Huntingdonshire District Council,182927,1224023912,5,43.37,Orange Airtime,CR455799,Leisure Development,Telephone &Mobile Phonecharges,240
11/02/2016,http://statistics.data.gov.uk/id/local-authority/12UE,Huntingdonshire District Council,182927,1224023912,5,7.2,Orange Airtime,CR455799,Licences,Telephone &Mobile Phonecharges,240
11/02/2016,http://statistics.data.gov.uk/id/local-authority/12UE,Huntingdonshire District Council,182927,1224023912,5,31.5,Orange Airtime,CR455799,Member Allowances & Support,Telephone &Mobile Phonecharges,240
11/02/2016,http://statistics.data.gov.uk/id/local-authority/12UE,Huntingdonshire District Council,182927,1224023912,5,35.99,Orange Airtime,CR455799,Off Street Parking,Telephone &Mobile Phonecharges,240
11/02/2016,http://statistics.data.gov.uk/id/local-authority/12UE,Huntingdonshire District Council,182927,1224023912,5,19.2,Orange Airtime,CR455799,One Leisure St Ives,Telephone &Mobile Phonecharges,240
11/02/2016,http://statistics.data.gov.uk/id/local-authority/12UE,Huntingdonshire District Council,182927,1224023912,5,9.6,Orange Airtime,CR455799,One Leisure St Neots,Telephone &Mobile Phonecharges,240
11/02/2016,http://statistics.data.gov.uk/id/local-authority/12UE,Huntingdonshire District Council,182927,1224023912,5,322.65,Orange Airtime,CR455799,Operations Mgt Units,Telephone &Mobile Phonecharges,240
11/02/2016,http://statistics.data.gov.uk/id/local-authority/12UE,Huntingdonshire District Council,182927,1224023912,5,9.6,Orange Airtime,CR455799,Pathfinder House Site,Telephone &Mobile Phonecharges,240
11/02/2016,http://statistics.data.gov.uk/id/local-authority/12UE,Huntingdonshire District Council,182927,1224023912,5,123.12,Orange Airtime,CR455799,Planning M U'S,Telephone &Mobile Phonecharges,240
11/02/2016,http://statistics.data.gov.uk/id/local-authority/12UE,Huntingdonshire District Council,182927,1224023912,5,16.9,Orange Airtime,CR455799,Property Development And Mgt,Telephone &Mobile Phonecharges,240
11/02/2016,http://statistics.data.gov.uk/id/local-authority/12UE,Huntingdonshire District Council,182927,1224023912,5,16.8,Orange Airtime,CR455799,Ramsey Neighbourhood,Telephone &Mobile Phonecharges,240
11/02/2016,http://statistics.data.gov.uk/id/local-authority/12UE,Huntingdonshire District Council,182927,1224023912,5,12,Orange Airtime,CR455799,Revenue Services Mus,Telephone &Mobile Phonecharges,240
11/02/2016,http://statistics.data.gov.uk/id/local-authority/12UE,Huntingdonshire District Council,182927,1224023912,5,2.4,Orange Airtime,CR455799,Street Cleaning,Telephone &Mobile Phonecharges,240
11/02/2016,http://statistics.data.gov.uk/id/local-authority/12UE,Huntingdonshire District Council,183944,2102343305,5,14.34,Booker Cash And Carry,CR027611,One Leisure St Ives,Bar Provisions,558
11/02/2016,http://statistics.data.gov.uk/id/local-authority/12UE,Huntingdonshire District Council,183944,2102343305,5,453.74,Booker Cash And Carry,CR027611,One Leisure St Ives,Catering Materials,559
11/02/2016,http://statistics.data.gov.uk/id/local-authority/12UE,Huntingdonshire District Council,183944,2102343305,5,4.79,Booker Cash And Carry,CR027611,One Leisure St Ives,Confectionery,572
11/02/2016,http://statistics.data.gov.uk/id/local-authority/12UE,Huntingdonshire District Council,183166,2102354589,5,537.71,Booker Cash And Carry,CR027611,One Leisure St Ives,Bar Provisions,558
11/02/2016,http://statistics.data.gov.uk/id/local-authority/12UE,Huntingdonshire District Council,183166,2102354589,5,74.57,Booker Cash And Carry,CR027611,One Leisure St Ives,Catering Materials,559
11/02/2016,http://statistics.data.gov.uk/id/local-authority/12UE,Huntingdonshire District Council,183166,2102354589,5,39.59,Booker Cash And Carry,CR027611,One Leisure St Ives,Materials,550
18/02/2016,http://statistics.data.gov.uk/id/local-authority/12UE,Huntingdonshire District Council,183945,2102364248,5,398.63,Booker Cash And Carry,CR027611,One Leisure St Ives,Bar Provisions,558
18/02/2016,http://statistics.data.gov.uk/id/local-authority/12UE,Huntingdonshire District Council,183945,2102364248,5,357.59,Booker Cash And Carry,CR027611,One Leisure St Ives,Catering Materials,559
18/02/2016,http://statistics.data.gov.uk/id/local-authority/12UE,Huntingdonshire District Council,183945,2102364248,5,92.28,Booker Cash And Carry,CR027611,One Leisure St Ives,Materials,550
18/02/2016,http://statistics.data.gov.uk/id/local-authority/12UE,Huntingdonshire District Council,183738,2102364275,5,159.94,Booker Cash And Carry,CR027611,One Leisure St Ives,Bar Provisions,558
18/02/2016,http://statistics.data.gov.uk/id/local-authority/12UE,Huntingdonshire District Council,183738,2102364275,5,10.94,Booker Cash And Carry,CR027611,One Leisure St Ives,Catering Materials,559
18/02/2016,http://statistics.data.gov.uk/id/local-authority/12UE,Huntingdonshire District Council,183738,2102364275,5,81.52,Booker Cash And Carry,CR027611,One Leisure St Ives,Materials,550
18/02/2016,http://statistics.data.gov.uk/id/local-authority/12UE,Huntingdonshire District Council,184420,2102366819,5,289.59,Booker Cash And Carry,CR027611,Countryside,Catering Materials,559
25/02/2016,http://statistics.data.gov.uk/id/local-authority/12UE,Huntingdonshire District Council,183798,2102375063,5,493.97,Booker Cash And Carry,CR027611,One Leisure St Ives,Bar Provisions,558
25/02/2016,http://statistics.data.gov.uk/id/local-authority/12UE,Huntingdonshire District Council,183798,2102375063,5,381.18,Booker Cash And Carry,CR027611,One Leisure St Ives,Catering Materials,559
25/02/2016,http://statistics.data.gov.uk/id/local-authority/12UE,Huntingdonshire District Council,183798,2102375063,5,122.9,Booker Cash And Carry,CR027611,One Leisure St Ives,Materials,550
04/02/2016,http://statistics.data.gov.uk/id/local-authority/12UE,Huntingdonshire District Council,182952,4000003321,5,363.56,1st Choice Recruitment,CR416849,Operations Mgt Units,Hired Staff,100
11/02/2016,http://statistics.data.gov.uk/id/local-authority/12UE,Huntingdonshire District Council,184071,4000003339,5,382.04,1st Choice Recruitment,CR416849,Operations Mgt Units,Hired Staff,100
18/02/2016,http://statistics.data.gov.uk/id/local-authority/12UE,Huntingdonshire District Council,183618,4000003358,5,342,1st Choice Recruitment,CR416849,Countryside,Hired Staff,100
18/02/2016,http://statistics.data.gov.uk/id/local-authority/12UE,Huntingdonshire District Council,184074,4000003361,5,277.3,1st Choice Recruitment,CR416849,Operations Mgt Units,Hired Staff,100
25/02/2016,http://statistics.data.gov.uk/id/local-authority/12UE,Huntingdonshire District Council,184075,4000003377,5,273.6,1st Choice Recruitment,CR416849,Countryside,Hired Staff,100
18/02/2016,http://statistics.data.gov.uk/id/local-authority/12UE,Huntingdonshire District Council,183273,5250094993,5,"1,495.00",Symantec,CR411898,Development Team,Software,206
11/02/2016,http://statistics.data.gov.uk/id/local-authority/12UE,Huntingdonshire District Council,183223,9051395540,5,788.69,Royal Mail,CR027083,Document Centre,Postage,231
11/02/2016,http://statistics.data.gov.uk/id/local-authority/12UE,Huntingdonshire District Council,183223,9051395540,5,"1,115.71",Royal Mail,CR027083,Electoral Registration,Postage,231
25/02/2016,http://statistics.data.gov.uk/id/local-authority/12UE,Huntingdonshire District Council,183594,9051441287,5,"3,295.67",Royal Mail,CR027083,Document Centre,Postage,231
25/02/2016,http://statistics.data.gov.uk/id/local-authority/12UE,Huntingdonshire District Council,183594,9051441287,5,519.73,Royal Mail,CR027083,Electoral Registration,Postage,231
25/02/2016,http://statistics.data.gov.uk/id/local-authority/12UE,Huntingdonshire District Council,183808,9051491788,5,539.54,Royal Mail,CR027083,Document Centre,Postage,231
25/02/2016,http://statistics.data.gov.uk/id/local-authority/12UE,Huntingdonshire District Council,183808,9051491788,5,"1,987.34",Royal Mail,CR027083,Project Contributions,Postage,231
25/02/2016,http://statistics.data.gov.uk/id/local-authority/12UE,Huntingdonshire District Council,183807,9051493459,5,549.67,Royal Mail,CR027083,Document Centre,Postage,231
18/02/2016,http://statistics.data.gov.uk/id/local-authority/12UE,Huntingdonshire District Council,184349,12489088110,5,"2,686.02",E-On Energy,CR416430,One Leisure Huntingdon,Gas,421
18/02/2016,http://statistics.data.gov.uk/id/local-authority/12UE,Huntingdonshire District Council,184351,12489088380,5,"3,652.96",E-On Energy,CR416430,One Leisure St Neots,Gas,421
18/02/2016,http://statistics.data.gov.uk/id/local-authority/12UE,Huntingdonshire District Council,184353,12489088540,5,369.59,E-On Energy,CR416430,One Leisure St Neots,Gas,421
18/02/2016,http://statistics.data.gov.uk/id/local-authority/12UE,Huntingdonshire District Council,184354,12489088700,5,"1,503.18",Swalec,CR407130,One Leisure Sawtry,Gas,421
18/02/2016,http://statistics.data.gov.uk/id/local-authority/12UE,Huntingdonshire District Council,184355,12489088970,5,874.08,E-On Energy,CR416430,One Leisure Huntingdon,Gas,421
18/02/2016,http://statistics.data.gov.uk/id/local-authority/12UE,Huntingdonshire District Council,184356,12489089510,5,752.1,E-On Energy,CR416430,One Leisure St Ives,Gas,421
18/02/2016,http://statistics.data.gov.uk/id/local-authority/12UE,Huntingdonshire District Council,184357,12489089940,5,440.21,E-On Energy,CR416430,E F H And Depots,Gas,421
18/02/2016,http://statistics.data.gov.uk/id/local-authority/12UE,Huntingdonshire District Council,184360,12489090790,5,"1,742.82",E-On Energy,CR416430,One Leisure Ramsey,Gas,421
18/02/2016,http://statistics.data.gov.uk/id/local-authority/12UE,Huntingdonshire District Council,184361,12489090950,5,"4,789.38",E-On Energy,CR416430,One Leisure St Ives,Gas,421
18/02/2016,http://statistics.data.gov.uk/id/local-authority/12UE,Huntingdonshire District Council,184363,13313569100,5,"2,467.86",E-On Energy,CR416430,Pathfinder House Site,Gas,421
25/02/2016,http://statistics.data.gov.uk/id/local-authority/12UE,Huntingdonshire District Council,183611,/6041,5,"1,800.00",Pos Enterprises,CR413287,Dc Application Processing,Corporate Subscriptions,754
11/02/2016,http://statistics.data.gov.uk/id/local-authority/12UE,Huntingdonshire District Council,182928,11559A,5,601.62,Lightning Recruitment,CR028184,Customer Service Centres,Hired Staff,100
25/02/2016,http://statistics.data.gov.uk/id/local-authority/12UE,Huntingdonshire District Council,184109,16-102-MR,5,484.34,Gb Sport & Leisure Uk Ltd,CR482429,Parks & Open Spaces,Playground Equipment,360
04/02/2016,http://statistics.data.gov.uk/id/local-authority/12UE,Huntingdonshire District Council,182516,185/1516,5,250,The Tree Council,CR400654,Trees,Corporate Subscriptions,754
18/02/2016,http://statistics.data.gov.uk/id/local-authority/12UE,Huntingdonshire District Council,183297,262316I,5,919.8,A C Commercials,CR000141,Domestic Refuse,Vehicle Oil & Lubricants,626
18/02/2016,http://statistics.data.gov.uk/id/local-authority/12UE,Huntingdonshire District Council,183297,262316I,5,52.56,A C Commercials,CR000141,Fleet Management,Vehicle Oil & Lubricants,626
18/02/2016,http://statistics.data.gov.uk/id/local-authority/12UE,Huntingdonshire District Council,183297,262316I,5,604.44,A C Commercials,CR000141,Grounds Maintenance,Vehicle Oil & Lubricants,626
18/02/2016,http://statistics.data.gov.uk/id/local-authority/12UE,Huntingdonshire District Council,183297,262316I,5,394.2,A C Commercials,CR000141,Recycling,Vehicle Oil & Lubricants,626
18/02/2016,http://statistics.data.gov.uk/id/local-authority/12UE,Huntingdonshire District Council,183297,262316I,5,657,A C Commercials,CR000141,Street Cleaning,Vehicle Oil & Lubricants,626
11/02/2016,http://statistics.data.gov.uk/id/local-authority/12UE,Huntingdonshire District Council,184105,4/25787,5,605.95,D H M Truck & Tachograph Centr,CR032254,Domestic Refuse,Vehicle Parts & Fittings,625
04/02/2016,http://statistics.data.gov.uk/id/local-authority/12UE,Huntingdonshire District Council,182586,44SI4408749,5,585.33,Brenntag Uk Ltd,CR015017,One Leisure Sawtry,Chemicals,551
25/02/2016,http://statistics.data.gov.uk/id/local-authority/12UE,Huntingdonshire District Council,183345,44SI4409081,5,811.05,Brenntag Uk Ltd,CR015017,One Leisure St Neots,Chemicals,551
18/02/2016,http://statistics.data.gov.uk/id/local-authority/12UE,Huntingdonshire District Council,184555,505/ONE,5,432,Term Times,CR423394,One Leisure St Neots,Advertising/Promoting Services,255
04/02/2016,http://statistics.data.gov.uk/id/local-authority/12UE,Huntingdonshire District Council,182592,742878104/0116,5,975.66,Virgin Media Business,CR033120,Helpdesk,I T Line Rental,248
04/02/2016,http://statistics.data.gov.uk/id/local-authority/12UE,Huntingdonshire District Council,182592,742878104/0116,5,6.9,Virgin Media Business,CR033120,Member Allowances & Support,I T Line Rental,248
04/02/2016,http://statistics.data.gov.uk/id/local-authority/12UE,Huntingdonshire District Council,182592,742878104/0116,5,9.6,Virgin Media Business,CR033120,One Leisure St Ives,I T Line Rental,248
04/02/2016,http://statistics.data.gov.uk/id/local-authority/12UE,Huntingdonshire District Council,182592,742878104/0116,5,0.17,Virgin Media Business,CR033120,Customer Service Centres,Telephone &Mobile Phonecharges,240
04/02/2016,http://statistics.data.gov.uk/id/local-authority/12UE,Huntingdonshire District Council,182592,742878104/0116,5,"1,124.48",Virgin Media Business,CR033120,Helpdesk,Telephone &Mobile Phonecharges,240
04/02/2016,http://statistics.data.gov.uk/id/local-authority/12UE,Huntingdonshire District Council,182592,742878104/0116,5,10.21,Virgin Media Business,CR033120,One Leisure Huntingdon,Telephone &Mobile Phonecharges,240
04/02/2016,http://statistics.data.gov.uk/id/local-authority/12UE,Huntingdonshire District Council,182592,742878104/0116,5,0.59,Virgin Media Business,CR033120,One Leisure St Ives,Telephone &Mobile Phonecharges,240
11/02/2016,http://statistics.data.gov.uk/id/local-authority/12UE,Huntingdonshire District Council,593360,8758 JAN 2016,5,575.4,Steves Taxis & Private Hire,CR155956,Homelessness Management,Contribution (Paid Out),810
25/02/2016,http://statistics.data.gov.uk/id/local-authority/12UE,Huntingdonshire District Council,184858,923469-064A,5,631.29,Virgin Media Business/Cpsn,CR455148,C C T V,I T Line Rental,248
25/02/2016,http://statistics.data.gov.uk/id/local-authority/12UE,Huntingdonshire District Council,184858,923469-064A,5,"7,267.61",Virgin Media Business/Cpsn,CR455148,Helpdesk,I T Line Rental,248
25/02/2016,http://statistics.data.gov.uk/id/local-authority/12UE,Huntingdonshire District Council,184875,923469-064B,5,-809.93,Virgin Media Business/Cpsn,CR455148,Helpdesk,I T Line Rental,248
25/02/2016,http://statistics.data.gov.uk/id/local-authority/12UE,Huntingdonshire District Council,183609,ACF1295,5,"9,600.00",Arlingclose,CR478136,Chief Executive & Comt,Consultants,711
04/02/2016,http://statistics.data.gov.uk/id/local-authority/12UE,Huntingdonshire District Council,182939,B-07122015,5,"3,485.63",Jacobs,CR422350,Council Tax,Bailiffs,703
25/02/2016,http://statistics.data.gov.uk/id/local-authority/12UE,Huntingdonshire District Council,184085,B3121414,5,"2,593.87",Bemrose Mobile Ltd,CR422668,Off Street Parking,Telephone &Mobile Phonecharges,240
04/02/2016,http://statistics.data.gov.uk/id/local-authority/12UE,Huntingdonshire District Council,183818,BC00146,5,"8,370.00",Barry Cornelius Associates,CR422523,Financial Services Mus,Hired Staff,100
04/02/2016,http://statistics.data.gov.uk/id/local-authority/12UE,Huntingdonshire District Council,183381,BD352423,5,473.76,Purchase Power,CR033202,One Leisure St Ives,Materials,550
18/02/2016,http://statistics.data.gov.uk/id/local-authority/12UE,Huntingdonshire District Council,184496,BOOGIE NIGHT,5,"1,422.70",Starlite Roadshow,CR024127,One Leisure St Ives,Entertainments Inc Cable Tv,744
10/02/2016,http://statistics.data.gov.uk/id/local-authority/12UE,Huntingdonshire District Council,184030,DCRE/209461,5,-355.2,South Cambridgeshire District Council,CR405127,Helpdesk,Software,206
11/02/2016,http://statistics.data.gov.uk/id/local-authority/12UE,Huntingdonshire District Council,184099,DE10923716,5,365.16,Dennis Eagle Ltd,CR000200,Domestic Refuse,Vehicle Parts & Fittings,625
18/02/2016,http://statistics.data.gov.uk/id/local-authority/12UE,Huntingdonshire District Council,183349,DE10924687,5,203.64,Dennis Eagle Ltd,CR000200,Domestic Refuse,Vehicle Parts & Fittings,625
18/02/2016,http://statistics.data.gov.uk/id/local-authority/12UE,Huntingdonshire District Council,183349,DE10924687,5,"1,253.99",Dennis Eagle Ltd,CR000200,Recycling,Vehicle Parts & Fittings,625
18/02/2016,http://statistics.data.gov.uk/id/local-authority/12UE,Huntingdonshire District Council,184428,DE10925665,5,672.43,Dennis Eagle Ltd,CR000200,Domestic Refuse,Vehicle Parts & Fittings,625
25/02/2016,http://statistics.data.gov.uk/id/local-authority/12UE,Huntingdonshire District Council,184101,DE10926324,5,490.57,Dennis Eagle Ltd,CR000200,Domestic Refuse,Vehicle Parts & Fittings,625
25/02/2016,http://statistics.data.gov.uk/id/local-authority/12UE,Huntingdonshire District Council,184104,DE10926698,5,362.41,Dennis Eagle Ltd,CR000200,Domestic Refuse,Vehicle Parts & Fittings,625
25/02/2016,http://statistics.data.gov.uk/id/local-authority/12UE,Huntingdonshire District Council,184100,DE10927048,5,"2,089.97",Dennis Eagle Ltd,CR000200,Recycling,Vehicle Parts & Fittings,625
18/02/2016,http://statistics.data.gov.uk/id/local-authority/12UE,Huntingdonshire District Council,183234,DIHH/00002921,5,721.7,Luminus Homes,CR401276,Housing Services Other,Building Mtce,303
10/02/2016,http://statistics.data.gov.uk/id/local-authority/12UE,Huntingdonshire District Council,184029,DINV/209461,5,355.2,South Cambridgeshire District Council,CR405127,Helpdesk,Software,206
25/02/2016,http://statistics.data.gov.uk/id/local-authority/12UE,Huntingdonshire District Council,184489,DINV/213516,5,"5,628.00",South Cambridgeshire District Council,CR405127,Local Development Framework,Consultants,711
04/02/2016,http://statistics.data.gov.uk/id/local-authority/12UE,Huntingdonshire District Council,183666,EC002,5,"2,862.00",Ukos Projects Ltd,CR423164,Homelessness Management,Bed & Breakfast Payment,818
11/02/2016,http://statistics.data.gov.uk/id/local-authority/12UE,Huntingdonshire District Council,183988,EC003,5,"2,484.00",Ukos Projects Ltd,CR423164,Homelessness Management,Bed & Breakfast Payment,818
18/02/2016,http://statistics.data.gov.uk/id/local-authority/12UE,Huntingdonshire District Council,184607,EC004,5,"2,538.00",Ukos Projects Ltd,CR423164,Homelessness Management,Bed & Breakfast Payment,818
25/02/2016,http://statistics.data.gov.uk/id/local-authority/12UE,Huntingdonshire District Council,184818,EC005,5,"2,484.00",Ukos Projects Ltd,CR423164,Homelessness Management,Bed & Breakfast Payment,818
25/02/2016,http://statistics.data.gov.uk/id/local-authority/12UE,Huntingdonshire District Council,184033,F030631,5,"2,768.40",T Clarke East Ltd,CR482396,One Leisure St Ives,Building Mtce,303
25/02/2016,http://statistics.data.gov.uk/id/local-authority/12UE,Huntingdonshire District Council,594172,FM/180116,4,"6,025.39",Fusion Family & Youth Projects,CR423027,Community Safety,Grants (Paid Out),800
25/02/2016,http://statistics.data.gov.uk/id/local-authority/12UE,Huntingdonshire District Council,184422,GB10100099409,5,"21,411.60",Ernst & Young,CR411950,Chief Executive & Comt,Audit Fees,701
11/02/2016,http://statistics.data.gov.uk/id/local-authority/12UE,Huntingdonshire District Council,183215,GD449,5,138,Greenday Energy Ltd,CR422398,E F H And Depots,Building Mtce,303
11/02/2016,http://statistics.data.gov.uk/id/local-authority/12UE,Huntingdonshire District Council,183215,GD449,5,426,Greenday Energy Ltd,CR422398,Pathfinder House Site,Building Mtce,303
18/02/2016,http://statistics.data.gov.uk/id/local-authority/12UE,Huntingdonshire District Council,183152,GD451,5,264,Greenday Energy Ltd,CR422398,One Leisure St Neots,Consultants,711
11/02/2016,http://statistics.data.gov.uk/id/local-authority/12UE,Huntingdonshire District Council,183194,GFL1767HDC,5,606,G Ferrara Ltd,CR478949,Bus Shelters,Building Cleaning,440
04/02/2016,http://statistics.data.gov.uk/id/local-authority/12UE,Huntingdonshire District Council,183403,H19785,5,"1,324.06",Pearce Sound & Lighting Ltd,CR453763,One Leisure St Ives,Equipment Hire,507
04/02/2016,http://statistics.data.gov.uk/id/local-authority/12UE,Huntingdonshire District Council,183671,HDC048,5,"2,069.22",C G Utilities,CR119758,Facilities Mgt,Consultants,711
04/02/2016,http://statistics.data.gov.uk/id/local-authority/12UE,Huntingdonshire District Council,183794,HEX54000555322,5,576,Experian Ltd,CR401513,One Leisure Huntingdon,Licences,730
04/02/2016,http://statistics.data.gov.uk/id/local-authority/12UE,Huntingdonshire District Council,183794,HEX54000555322,5,576,Experian Ltd,CR401513,One Leisure Ramsey,Licences,730
04/02/2016,http://statistics.data.gov.uk/id/local-authority/12UE,Huntingdonshire District Council,183794,HEX54000555322,5,576,Experian Ltd,CR401513,One Leisure Sawtry,Licences,730
04/02/2016,http://statistics.data.gov.uk/id/local-authority/12UE,Huntingdonshire District Council,183794,HEX54000555322,5,576,Experian Ltd,CR401513,One Leisure St Ives,Licences,730
04/02/2016,http://statistics.data.gov.uk/id/local-authority/12UE,Huntingdonshire District Council,183794,HEX54000555322,5,576,Experian Ltd,CR401513,One Leisure St Neots,Licences,730
18/02/2016,http://statistics.data.gov.uk/id/local-authority/12UE,Huntingdonshire District Council,183167,I134920,5,560.3,Oakham Ales,CR422253,One Leisure St Ives,Bar Provisions,558
11/02/2016,http://statistics.data.gov.uk/id/local-authority/12UE,Huntingdonshire District Council,183999,I1444,5,685.2,Zurich Municipal,CR003638,Grounds Maintenance,Insurance Excess,797
11/02/2016,http://statistics.data.gov.uk/id/local-authority/12UE,Huntingdonshire District Council,184150,IN0489805,5,"2,870.04",Staffline Group,CR416827,Recycling,Hired Staff,100
11/02/2016,http://statistics.data.gov.uk/id/local-authority/12UE,Huntingdonshire District Council,184151,IN0489806,5,"3,086.41",Staffline Group,CR416827,Domestic Refuse,Hired Staff,100
11/02/2016,http://statistics.data.gov.uk/id/local-authority/12UE,Huntingdonshire District Council,184148,IN0489807,5,"3,085.86",Staffline Group,CR416827,Domestic Refuse,Hired Staff,100
04/02/2016,http://statistics.data.gov.uk/id/local-authority/12UE,Huntingdonshire District Council,183722,IN0489808,5,679.68,Staffline Group,CR416827,Street Cleaning,Hired Staff,100
11/02/2016,http://statistics.data.gov.uk/id/local-authority/12UE,Huntingdonshire District Council,183698,IN0491431,5,"2,125.31",Staffline Group,CR416827,Recycling,Hired Staff,100
11/02/2016,http://statistics.data.gov.uk/id/local-authority/12UE,Huntingdonshire District Council,183701,IN0491432,5,"3,532.72",Staffline Group,CR416827,Domestic Refuse,Hired Staff,100
11/02/2016,http://statistics.data.gov.uk/id/local-authority/12UE,Huntingdonshire District Council,183696,IN0491433,5,"3,650.12",Staffline Group,CR416827,Domestic Refuse,Hired Staff,100
11/02/2016,http://statistics.data.gov.uk/id/local-authority/12UE,Huntingdonshire District Council,183705,IN0491434,5,852.48,Staffline Group,CR416827,Street Cleaning,Hired Staff,100
25/02/2016,http://statistics.data.gov.uk/id/local-authority/12UE,Huntingdonshire District Council,183700,IN0492517,5,"2,884.21",Staffline Group,CR416827,Recycling,Hired Staff,100
25/02/2016,http://statistics.data.gov.uk/id/local-authority/12UE,Huntingdonshire District Council,183703,IN0492518,5,"2,253.35",Staffline Group,CR416827,Domestic Refuse,Hired Staff,100
25/02/2016,http://statistics.data.gov.uk/id/local-authority/12UE,Huntingdonshire District Council,183697,IN0492519,5,"1,527.65",Staffline Group,CR416827,Domestic Refuse,Hired Staff,100
25/02/2016,http://statistics.data.gov.uk/id/local-authority/12UE,Huntingdonshire District Council,183707,IN0492520,5,426.24,Staffline Group,CR416827,Street Cleaning,Hired Staff,100
25/02/2016,http://statistics.data.gov.uk/id/local-authority/12UE,Huntingdonshire District Council,184472,IN0494401,5,"1,318.09",Staffline Group,CR416827,Recycling,Hired Staff,100
25/02/2016,http://statistics.data.gov.uk/id/local-authority/12UE,Huntingdonshire District Council,184473,IN0494402,5,"3,351.07",Staffline Group,CR416827,Domestic Refuse,Hired Staff,100
25/02/2016,http://statistics.data.gov.uk/id/local-authority/12UE,Huntingdonshire District Council,184471,IN0494403,5,"3,128.24",Staffline Group,CR416827,Domestic Refuse,Hired Staff,100
04/02/2016,http://statistics.data.gov.uk/id/local-authority/12UE,Huntingdonshire District Council,182455,IN16PS16000101,5,280.46,Whistl Uk Ltd,CR479965,Document Centre,Postage,231
04/02/2016,http://statistics.data.gov.uk/id/local-authority/12UE,Huntingdonshire District Council,182455,IN16PS16000101,5,39.02,Whistl Uk Ltd,CR479965,Electoral Registration,Postage,231
11/02/2016,http://statistics.data.gov.uk/id/local-authority/12UE,Huntingdonshire District Council,183986,INV#02940,5,750,Nrm Plumbing & Heating,CR416722,One Leisure St Neots,Building Mtce,303
11/02/2016,http://statistics.data.gov.uk/id/local-authority/12UE,Huntingdonshire District Council,183987,INV#02942,5,360,Nrm Plumbing & Heating,CR416722,One Leisure Huntingdon,Building Mtce,303
11/02/2016,http://statistics.data.gov.uk/id/local-authority/12UE,Huntingdonshire District Council,183723,INV001491,5,"1,250.00",Lynx Bowling Services,CR455532,One Leisure St Ives,Equipment Maintenance,511
11/02/2016,http://statistics.data.gov.uk/id/local-authority/12UE,Huntingdonshire District Council,183723,INV001491,5,809.52,Lynx Bowling Services,CR455532,One Leisure St Ives,Plant & Equipment Maintenance,380
18/02/2016,http://statistics.data.gov.uk/id/local-authority/12UE,Huntingdonshire District Council,183378,INV035029,5,645.54,Slush Puppie Ltd,CR455958,One Leisure St Ives,Catering Materials,559
25/02/2016,http://statistics.data.gov.uk/id/local-authority/12UE,Huntingdonshire District Council,184474,INV0494404,5,426.24,Staffline Group,CR416827,Street Cleaning,Hired Staff,100
25/02/2016,http://statistics.data.gov.uk/id/local-authority/12UE,Huntingdonshire District Council,184822,INV1628029,5,392.57,Interaction Recruitment Plc,CR007892,Financial Services Mus,Hired Staff,100
25/02/2016,http://statistics.data.gov.uk/id/local-authority/12UE,Huntingdonshire District Council,184814,INV1628030,5,285.6,Interaction Recruitment Plc,CR007892,Financial Services Mus,Hired Staff,100
11/02/2016,http://statistics.data.gov.uk/id/local-authority/12UE,Huntingdonshire District Council,183416,INV1634267,5,900,Interaction Recruitment Plc,CR007892,C C T V,Hired Staff,100
04/02/2016,http://statistics.data.gov.uk/id/local-authority/12UE,Huntingdonshire District Council,183665,IOSINV008016,5,105,Institute Of Swimming Ltd,CR455603,One Leisure Huntingdon,Training,130
04/02/2016,http://statistics.data.gov.uk/id/local-authority/12UE,Huntingdonshire District Council,183665,IOSINV008016,5,140,Institute Of Swimming Ltd,CR455603,One Leisure Ramsey,Training,130
04/02/2016,http://statistics.data.gov.uk/id/local-authority/12UE,Huntingdonshire District Council,183665,IOSINV008016,5,35,Institute Of Swimming Ltd,CR455603,One Leisure Sawtry,Training,130
04/02/2016,http://statistics.data.gov.uk/id/local-authority/12UE,Huntingdonshire District Council,183665,IOSINV008016,5,245,Institute Of Swimming Ltd,CR455603,One Leisure St Ives,Training,130
16/02/2016,http://statistics.data.gov.uk/id/local-authority/12UE,Huntingdonshire District Council,584670,L/SD/1546 WINDI,5,"1,530.00",Hmcts,CR030090,N N D R Administration,Legal Fees,729
16/02/2016,http://statistics.data.gov.uk/id/local-authority/12UE,Huntingdonshire District Council,593708,L/SD/1546 WINDI,5,"-1,530.00",Hmcts,CR030090,N N D R Administration,Legal Fees,729
25/02/2016,http://statistics.data.gov.uk/id/local-authority/12UE,Huntingdonshire District Council,184327,M0010682,5,433.2,Geoquip Worldwide,CR479071,E F H And Depots,Plant & Equipment Maintenance,380
25/02/2016,http://statistics.data.gov.uk/id/local-authority/12UE,Huntingdonshire District Council,183933,OLSI,5,340,Lui The Plumber,CR422379,One Leisure St Ives,Building Mtce,303
11/02/2016,http://statistics.data.gov.uk/id/local-authority/12UE,Huntingdonshire District Council,183279,OP/I768806,5,298.73,Phoenix Software Ltd,CR031918,Helpdesk,Equipment Maintenance,511
18/02/2016,http://statistics.data.gov.uk/id/local-authority/12UE,Huntingdonshire District Council,183278,OP/I769199,5,"13,969.20",Phoenix Software Ltd,CR031918,Helpdesk,Software,206
25/02/2016,http://statistics.data.gov.uk/id/local-authority/12UE,Huntingdonshire District Council,183732,OP/I769593,5,"4,800.00",Phoenix Software Ltd,CR031918,Helpdesk,Software,206
25/02/2016,http://statistics.data.gov.uk/id/local-authority/12UE,Huntingdonshire District Council,183731,OP/I769670,5,"1,759.39",Phoenix Software Ltd,CR031918,Development Team,Software,206
25/02/2016,http://statistics.data.gov.uk/id/local-authority/12UE,Huntingdonshire District Council,183730,OP/I769732,5,"2,575.80",Phoenix Software Ltd,CR031918,Helpdesk,Software,206
25/02/2016,http://statistics.data.gov.uk/id/local-authority/12UE,Huntingdonshire District Council,183730,OP/I769732,5,"14,341.32",Phoenix Software Ltd,CR031918,Helpdesk,Software,206
25/02/2016,http://statistics.data.gov.uk/id/local-authority/12UE,Huntingdonshire District Council,184372,P020145750,5,921.6,Stannah Lifts,CR088939,Off Street Parking,Plant & Equipment Maintenance,380
18/02/2016,http://statistics.data.gov.uk/id/local-authority/12UE,Huntingdonshire District Council,184497,PC140216BH,5,420,Rug-Cutters Lindyhop,CR478597,One Leisure St Ives,Entertainments Inc Cable Tv,744
04/02/2016,http://statistics.data.gov.uk/id/local-authority/12UE,Huntingdonshire District Council,591811,PO 27487,5,775.68,Eclipse,CR417066,Development Team,Software,206
18/02/2016,http://statistics.data.gov.uk/id/local-authority/12UE,Huntingdonshire District Council,592689,PO 27509,5,"7,200.00",South Cambridgeshire District Council,CR405127,Housing  Benefits Admin,Software,206
18/02/2016,http://statistics.data.gov.uk/id/local-authority/12UE,Huntingdonshire District Council,182978,PSINV01571160,5,390,Kelway (Uk) Ltd,CR004345,Helpdesk,Equipment Maintenance,511
18/02/2016,http://statistics.data.gov.uk/id/local-authority/12UE,Huntingdonshire District Council,182978,PSINV01571160,5,"1,989.00",Kelway (Uk) Ltd,CR004345,Helpdesk,Equipment Maintenance,511
04/02/2016,http://statistics.data.gov.uk/id/local-authority/12UE,Huntingdonshire District Council,182600,R011384,5,264,Premier It Recruitment Ltd,CR454029,Helpdesk,Hired Staff,100
04/02/2016,http://statistics.data.gov.uk/id/local-authority/12UE,Huntingdonshire District Council,182601,R011385,5,792,Premier It Recruitment Ltd,CR454029,Helpdesk,Hired Staff,100
04/02/2016,http://statistics.data.gov.uk/id/local-authority/12UE,Huntingdonshire District Council,182602,R011386,5,792,Premier It Recruitment Ltd,CR454029,Helpdesk,Hired Staff,100
11/02/2016,http://statistics.data.gov.uk/id/local-authority/12UE,Huntingdonshire District Council,183007,R011484,5,"1,320.00",Premier It Recruitment Ltd,CR454029,Helpdesk,Hired Staff,100
11/02/2016,http://statistics.data.gov.uk/id/local-authority/12UE,Huntingdonshire District Council,183009,R011485,5,"1,320.00",Premier It Recruitment Ltd,CR454029,Helpdesk,Hired Staff,100
18/02/2016,http://statistics.data.gov.uk/id/local-authority/12UE,Huntingdonshire District Council,183035,R011612,5,"1,320.00",Premier It Recruitment Ltd,CR454029,Helpdesk,Hired Staff,100
18/02/2016,http://statistics.data.gov.uk/id/local-authority/12UE,Huntingdonshire District Council,183034,R011613,5,"1,320.00",Premier It Recruitment Ltd,CR454029,Helpdesk,Hired Staff,100
18/02/2016,http://statistics.data.gov.uk/id/local-authority/12UE,Huntingdonshire District Council,183032,R011614,5,"1,320.00",Premier It Recruitment Ltd,CR454029,Helpdesk,Hired Staff,100
18/02/2016,http://statistics.data.gov.uk/id/local-authority/12UE,Huntingdonshire District Council,183030,R011615,5,"1,320.00",Premier It Recruitment Ltd,CR454029,Helpdesk,Hired Staff,100
25/02/2016,http://statistics.data.gov.uk/id/local-authority/12UE,Huntingdonshire District Council,183367,R011787,5,"1,320.00",Premier It Recruitment Ltd,CR454029,Helpdesk,Hired Staff,100
25/02/2016,http://statistics.data.gov.uk/id/local-authority/12UE,Huntingdonshire District Council,183366,R011788,5,"1,320.00",Premier It Recruitment Ltd,CR454029,Helpdesk,Hired Staff,100
25/02/2016,http://statistics.data.gov.uk/id/local-authority/12UE,Huntingdonshire District Council,183365,R011789,5,"1,320.00",Premier It Recruitment Ltd,CR454029,Helpdesk,Hired Staff,100
25/02/2016,http://statistics.data.gov.uk/id/local-authority/12UE,Huntingdonshire District Council,183747,R011885,5,"1,320.00",Premier It Recruitment Ltd,CR454029,Helpdesk,Hired Staff,100
04/02/2016,http://statistics.data.gov.uk/id/local-authority/12UE,Huntingdonshire District Council,183669,RELOCATION,5,"4,500.00",Redacted Personal Data,CR423371,Renovation/Improvement Grants,Grants (Paid Out),800
11/02/2016,http://statistics.data.gov.uk/id/local-authority/12UE,Huntingdonshire District Council,182999,RSIN0163681,5,"3,403.20",Rigby Taylor Ltd,CR001345,Grounds Maintenance,Materials,550
11/02/2016,http://statistics.data.gov.uk/id/local-authority/12UE,Huntingdonshire District Council,184000,S160207,5,30,Chipside,CR479533,Off Street Parking,Other I T Hardware,203
11/02/2016,http://statistics.data.gov.uk/id/local-authority/12UE,Huntingdonshire District Council,184000,S160207,5,383.58,Chipside,CR479533,Off Street Parking,Other I T Hardware,203
11/02/2016,http://statistics.data.gov.uk/id/local-authority/12UE,Huntingdonshire District Council,184000,S160207,5,126.36,Chipside,CR479533,Off Street Parking,Other I T Hardware,203
25/02/2016,http://statistics.data.gov.uk/id/local-authority/12UE,Huntingdonshire District Council,184005,SBO1033747,5,260.23,Veolia Es Uk Ltd,CR478889,One Leisure Huntingdon,Waste Disposal,763
25/02/2016,http://statistics.data.gov.uk/id/local-authority/12UE,Huntingdonshire District Council,184034,SI327695-1,5,286,Rlss Uk Enterprises Ltd - Lifesavers Direct,CR401615,One Leisure Sawtry,Materials,550
25/02/2016,http://statistics.data.gov.uk/id/local-authority/12UE,Huntingdonshire District Council,184044,SI327856-1,5,286,Rlss Uk Enterprises Ltd - Lifesavers Direct,CR401615,One Leisure St Neots,Materials,550
11/02/2016,http://statistics.data.gov.uk/id/local-authority/12UE,Huntingdonshire District Council,182841,SI-454,5,"1,428.00",Canrehab Ltd,CR423144,Leisure Development,Training,130
25/02/2016,http://statistics.data.gov.uk/id/local-authority/12UE,Huntingdonshire District Council,184388,SIN004178,5,"1,132.48",Enterprise Support Services Uk Ltd,CR422509,Pathfinder House Site,Building Cleaning,440
25/02/2016,http://statistics.data.gov.uk/id/local-authority/12UE,Huntingdonshire District Council,184390,SIN004179,5,254.35,Enterprise Support Services Uk Ltd,CR422509,E F H And Depots,Building Mtce,303
25/02/2016,http://statistics.data.gov.uk/id/local-authority/12UE,Huntingdonshire District Council,184392,SIN004180,5,720,Enterprise Support Services Uk Ltd,CR422509,Pathfinder House Site,Building Mtce,303
11/02/2016,http://statistics.data.gov.uk/id/local-authority/12UE,Huntingdonshire District Council,183676,SIN0601804,5,274.47,Howsafe Ltd,CR000409,Operations Mgt Units,Protective Clothing & Uniforms,163
11/02/2016,http://statistics.data.gov.uk/id/local-authority/12UE,Huntingdonshire District Council,183415,SIN078931,5,"7,300.20",Quadrant Security Group,CR027775,C C T V,Equipment Maintenance,511
18/02/2016,http://statistics.data.gov.uk/id/local-authority/12UE,Huntingdonshire District Council,183193,SIN079047,5,528,Quadrant Security Group,CR027775,C C T V,Equipment Maintenance,511
25/02/2016,http://statistics.data.gov.uk/id/local-authority/12UE,Huntingdonshire District Council,183735,SIN097647,5,"2,634.00",Eacs Ltd,CR404499,Helpdesk,Training,130
11/02/2016,http://statistics.data.gov.uk/id/local-authority/12UE,Huntingdonshire District Council,182982,SINV00082592,5,672,Bist,CR422733,Parks & Open Spaces,Other I T Hardware,203
11/02/2016,http://statistics.data.gov.uk/id/local-authority/12UE,Huntingdonshire District Council,182982,SINV00082592,5,124.8,Bist,CR422733,Parks & Open Spaces,Other I T Hardware,203
18/02/2016,http://statistics.data.gov.uk/id/local-authority/12UE,Huntingdonshire District Council,184377,SINV-091671,5,"1,200.00",Gelpack Excelsior Limited,CR002966,Recycling,Refuse Sacks,552
18/02/2016,http://statistics.data.gov.uk/id/local-authority/12UE,Huntingdonshire District Council,184551,SIQN00160,5,350,St Ives Quay News,CR422868,One Leisure St Ives,Advertising/Promoting Services,255
25/02/2016,http://statistics.data.gov.uk/id/local-authority/12UE,Huntingdonshire District Council,183787,SIV100090,5,297.54,Les Mills Uk,CR025826,One Leisure St Ives,Licences,730
25/02/2016,http://statistics.data.gov.uk/id/local-authority/12UE,Huntingdonshire District Council,183694,SM3073233,5,"1,419.60",First In Service Ltd,CR422285,One Leisure St Ives,Plant & Equipment Maintenance,380
25/02/2016,http://statistics.data.gov.uk/id/local-authority/12UE,Huntingdonshire District Council,183537,SM3074910,5,"1,125.60",First In Service Ltd,CR422285,Leisure Centres Capital,Plant & Equipment Maintenance,380
25/02/2016,http://statistics.data.gov.uk/id/local-authority/12UE,Huntingdonshire District Council,183541,SM3076933,5,291.6,First In Service Ltd,CR422285,One Leisure Huntingdon,Plant & Equipment Maintenance,380
25/02/2016,http://statistics.data.gov.uk/id/local-authority/12UE,Huntingdonshire District Council,184087,SN2308716,5,477,Berendsen,CR478298,Fleet Management,Materials,550
18/02/2016,http://statistics.data.gov.uk/id/local-authority/12UE,Huntingdonshire District Council,183177,STI000391,5,"6,824.51",St Ivo School,CR408986,One Leisure St Ives,Water & Sewerage,432
18/02/2016,http://statistics.data.gov.uk/id/local-authority/12UE,Huntingdonshire District Council,592393,TRAINING16/010,6,650,Naleo,CR453850,Licences,Training,130
25/02/2016,http://statistics.data.gov.uk/id/local-authority/12UE,Huntingdonshire District Council,184819,V1625583,5,317.2,Weightmans,CR455744,Insurance Premium Holding,Insurance Public Liability,160
18/02/2016,http://statistics.data.gov.uk/id/local-authority/12UE,Huntingdonshire District Council,593715,VARIOUS ITEMS,2,25.04,Redacted Personal Data,CR403107,One Leisure Huntingdon,Building Mtce,303
18/02/2016,http://statistics.data.gov.uk/id/local-authority/12UE,Huntingdonshire District Council,593715,VARIOUS ITEMS,2,9.6,Redacted Personal Data,CR403107,One Leisure Huntingdon,Catering Materials,559
18/02/2016,http://statistics.data.gov.uk/id/local-authority/12UE,Huntingdonshire District Council,593715,VARIOUS ITEMS,2,104.27,Redacted Personal Data,CR403107,One Leisure Huntingdon,Materials,550
18/02/2016,http://statistics.data.gov.uk/id/local-authority/12UE,Huntingdonshire District Council,593715,VARIOUS ITEMS,2,480.83,Redacted Personal Data,CR403107,One Leisure Huntingdon,Sports Equipment,524
18/02/2016,http://statistics.data.gov.uk/id/local-authority/12UE,Huntingdonshire District Council,593715,VARIOUS ITEMS,2,93.9,Redacted Personal Data,CR403107,One Leisure Huntingdon,Vehicle Hire,607
